Workbook

Sheet Users Guide
C6: MSU 2025 Farm Bill Analyzer USERS GUIDE
C7: Version 2.0
C8: Michigan State University Extension
C9: Based on design created by Roger Betz
C11: The MSU FARM BILL ANALYZER provides an analysis of the one important decision that are included in the Agricultural Act of 2018 (the 2018 Farm Bill). Owners and/or tenants can elect either the Agricultural Risk Coverage (ARC-CO or ARC-IC) or Price Loss Coverage (PLC) programs for each covered commodity on each of their farms.
C13: This FARM BILL ANALYZER provides farm management information on the ARC Co versus PLC decisions based on assumptions about county yields and national market prices. Given the inputted variables listed below, the MSU FARM BILL ANALYZER will calculate the consequences for the farm manager’s alternative decisions the election of ARC-CO or PLC programs. The ARC Individual (ARC-IC) program is not analyzed by the tool but is available in the Farm Bill.
C15: Disclaimer: This MSU FARM BILL ANALYZER is designed with the most recent information available about the provisions of the current Farm Bill.
C17: I. To operate the MSU FARM BILL ANALYZER, the user will need the following information:
C18: A. The Farm Service Agency (FSA) PLC program yields by FSA farm number.
C19: B. If the farm has irrigated yields, the irrigated and non-irrigated yields by acres by year need to be separated.
C20: C. Assumed county average yields (irrigated and non-irrigated) for the county in which the farm is located.
C21: D. Assumed national market year average prices (MYA) for the upcoming season.
C22: E. If considering purchase of a Supplemental Coverage Option (SCO) policy, intended planting acres, projected premiums and indemnity payments
C24: II. Operation of the tool:
C25: A. The green colored cells are where data and information can be entered. All non-green cells are protected from changes.
C26: B. Where the program says to < SELECT, highlight the green colored cells to the left by clicking on it and a "scroll button" will appear to make your selection. Click on the "scroll button" to activate the choices.
C27: C. The tool has several grey colored buttons to perform various macros contained with in the spreadsheet.
C28: D. Various formulas may appear in green cells that can be changed. It is ok and encouraged to use your own values in these cells. The various macro buttons will restore these formulas and default values.
C30: III. Steps for Data Entry:
C31: Step 1. Select from pull down menu the Farm's County. Then enter a farm name of your choice and the FSA Farm Number.
C32: Step 2. Enter the farm's PLC program base acres for all covered commodities on the farm. FSA form CCC-861
C33: Note: In the Farm Bill, “covered commodities” with base acres in Michigan include barley, oats, and some others. If you have a significant base in these crops, please contact the MSU Extension Farm Business Management team or use one of the other national analyzer programs.
C34: Step 3. Enter the farm’s PLC program yield for all covered commodities on the farm. FSA form CCC-861
C35: Step 4. Enter the farm's intended planted acres for all covered commodities on the farm. (Only needed for SCO policy considering, otherwise, may skip)
C36: Note: Intended planted acres are only needed for the Supplemental Coverage Option (SCO) policy consideration. If you do plan to consider purchase of a SCO policy, this step may be skipped.
C37: Step 5. Enter assumed county yields for the upcoming crop year
C38: Note: You can adjust the county yields by entering different yields directly or adjusting their percentage. A default for 86% of county yields is available to demonstrate scenarios of significant yield loss.
C39: Note #2: If a county does not list a yield (i.e., soybeans for Alger county), USDA does not have a recorded county yield on file. Check with your local USDA Farm Service Agency office on how ARC programs are calculated in your specific county.
C40: Step 6. Select the SCO coverage level and enter the anticipated payment using the ECO/SCO Payment Estimator from Farmdoc
C41: https://farmdoc.illinois.edu/fast-tools/eco-sco-payment-estimator
C42: Step 7. Select or Enter Projected Market Year National Average Prices. (MYA)
C43: A. Various projected prices from alternative sources can be chosen by using the “drop-down” menu.
C44: B. The user can also increase or decrease these base price projections by entering the desired percent change.
C45: C. The default values can be restored by using the “Restore Default Price Projections” button.
C47: IV. FSA Decisions:
C48: FSA Decision 1:
C49: Based on the inputted values the tool calculates the results. Look for the highest payments for the upcoming year for each crop; corn, soys and wheat. It is important to test various scenarios to see the impacts of various yields and prices. Low prices and average or high yields usually favors PLC. Low yields and low prices may favor ARC-CO or PLC depending on the crop, the county and levels of low prices and low yields.
C50: FSA Decision 2:
C51: SCO can only be used if a farm selects PLC. SCO is an insurance policy that requires a premium payment in order to receive benefits. Based on the input anticipated benefit after premium, the tool calculates whether PLC with SCO offers a higher potential payment compared to ARC-CO.
C53: V. Interpretation of Results: The results calculated by the MSU FARM BILL ANALYZER -- Results include:
C54: A. ARC-CO versus PLC: What is the consequence of electing to enroll the farm in ARC-CO or PLC? The MSU FARM BILL ANALYZER compares the farm’s expected total program payment for each covered commodity under each of these two program choices.
C55: B. Color coding is used to help quickly see which program has the highs payment given the inputted information. Green is highest and red is lowest program payment choice.
C57: VI. Conclusion:
C58: Given the many factors that could affect the two major decisions contained in the Farm Bill, users are encouraged to consider:
C59: A. Running a wide range of scenarios for prices and yields for the upcoming year. Use the best information available for the upcoming year as sign up deadline is March 15th of the crop year decision. Testing various prices and yields is highly recommended and the calculator is designed to accommodate this testing of the USDA program.
C60: B. The farm managers risk preference will effect the final decision made; not simply the result from the most likely prices and yields. What happens when prices and/or yields……………..and how much potential benefit is offered from the USDA SCO risk management policy option?
C62: MSU Farm Bill ARC-PLC Decision Making Tool © 2025 Michigan State University Board of Trustees. 4-H and other Cooperative Extension System groups and other nonprofit educational groups may print hard copies of this material for noncommercial, educational use, provided that attribution is given to Michigan State University Extension. All other rights reserved. For information, contact MSU Extension, 108 Agriculture Hall, 446 West Circle Drive, East Lansing, MI 48824.
C64: MSU is an affirmative-action, equal-opportunity employer, committed to achieving excellence through a diverse workforce and inclusive culture that encourages all people to reach their full potential. Michigan State University Extension programs and materials are open to all without regard to race, color, national origin, gender, gender identity, religion, age, height, weight, disability, political beliefs, sexual orientation, marital status, family status or veteran status. Issued in furtherance of MSU Extension work, acts of May 8 and June 30, 1914, in cooperation with the U.S. Department of Agriculture, Director, MSU Extension, East Lansing, MI 48824. This information is for educational purposes only. Reference to commercial products or trade names does not imply endorsement by MSU Extension or bias against those not mentioned.
C66: VII. Version Updates

Sheet Farm Bill Calculator
C1: MSU 2025 FARM BILL ANALYZER
C2: Version 2.0
A3: Step 1. Select Farm's County
B4: County Farm located: | C4: Shiawassee | D4: < Select County | E4: Farm Name: | F4: Smith
E5: Farm Number: | F5: 1234
A7: Step 2. Enter Acres, Yields and Irrigation Percentage (from FSA CCC-861,156) for each farm
B8: Commodity | C8: Corn | D8: Soybeans | E8: Wheat
B9: Base Acres | C9: 1 | D9: 1 | E9: 1 | F9: =SUM(C9:E9) -> 3 | G9: Total Base Acres
B10: PLC Yield | C10: 0 | D10: 0 | E10: 0
B11: Historical Irrigated Percentage | C11: 0 | D11: 0 | E11: 0
B12: Actual Planted Acres | C12: 0 | D12: 0 | E12: 0 | F12: =SUM(C12:E12) -> 0 | G12: Total Planted Acres
E14: CORN | G14: SOYBEANS | I14: WHEAT
D15: National Loan Rates | E15: 2.2 | G15: 6.2 | I15: 3.38
D16: Effective Reference Prices | E16: ='Background Calculations'!T41 -> 4.255 | G16: ='Background Calculations'!T42 -> 9.66 | I16: ='Background Calculations'!T43 -> 5.564666667
D17: Benchmark Prices | E17: ='Background Calculations'!M54 -> 5.03 | G17: ='Background Calculations'!M55 -> 12.17 | I17: ='Background Calculations'!M56 -> 6.72
E18: Benchmark Years 2018 - 2022
A19: Step 3. Enter Anticipated COUNTY Yields
D20: =C4 -> Shiawassee | E20: County Weighted Yield (Irrigated and Dry)
D21: % Irrigated | E21: =C11 -> 0 | G21: =D11 -> 0 | I21: =E11 -> 0
E22: Anticipated COUNTY Yields
E23: ='Background Calculations'!M34*(1+F23) -> 133.09 | F23: 0 | G23: ='Background Calculations'!M35*(1+H23) -> 40.67 | H23: 0 | I23: ='Background Calculations'!M36*(1+J23) -> 93.7 | J23: 0
D24: Percent of Benchmark Yield | E24: =E23/'Background Calculations'!M34 -> 1 | G24: =G23/'Background Calculations'!M35 -> 1 | I24: =I23/'Background Calculations'!M36 -> 1
A26: Step 4. Enter SCO Insurance Payments & Coverage | E26: SCO Percentage & Estimated Payment/Premium
E27: CORN | G27: SOYBEANS | I27: WHEAT
C28: Supplemental Coverage Option (County Yield Based) | D28: SCO Coverage % | E28: 0 | G28: 0 | I28: 0
D29: SCO Premium | E29: 0 | G29: 0 | I29: 0
D30: SCO Payment | E30: 0 | G30: 0 | I30: 0
E31: Contact Insurance Agent or use Farmdoc Crop Insurance Decision Tool for Premium Estimates | J31: Link to Decision Tool
E32: Use Farmdoc SCO/ECO Payment Estimator to calculate SCO Payment | J32: Link to Estimator
A33: Step 5. Enter or Select Projected Prices
D34: Base Assumptions for MYA Prices to Use: | E34: USDA/WASDE (2024/2025) | H34: < Select Base Prices Source
D35: Price Change from Base assumptions: | E35: Projected Crop Prices
E36: CORN | G36: SOYBEANS | I36: WHEAT
E37: =E38*(1+F37) -> 4.35 | F37: 0 | G37: =G38*(1+H37) -> 10.1 | H37: =F37 -> 0 | I37: =I38*(1+J37) -> 5.55 | J37: =H37 -> 0
E38: =VLOOKUP(E34,'MYA Prices'!B4:E14,2,FALSE) -> 4.35 | G38: =VLOOKUP(E34,'MYA Prices'!B4:E14,3,FALSE) -> 10.1 | I38: =VLOOKUP(E34,'MYA Prices'!B4:E14,4,FALSE) -> 5.55
A41: Step 6. Evaluate the Results | E41: Program Year Choice? (No SCO)
A42: Per Base Acre | B42: Projected Program Payments | E42: CORN | G42: SOYBEANS | I42: WHEAT
B43: PLC | E43: =IF(E37>E15,IF(E37<E16,E16-E37,0)*C10,(E16-E15)*C10)*(0.85) -> 0 | G43: =IF(G37>G15,IF(G37<G16,G16-G37,0)*D10,(G16-G15)*D10)*(0.85) -> 0 | I43: =IF(I37>I15,IF(I37<I16,I16-I37,0)*E10,(I16-I15)*E10)*(0.85) -> 0
B44: ARC-CO | E44: ='Background Calculations'!S34*0.85 -> 0 | G44: ='Background Calculations'!S35*0.85 -> 12.6593509 | I44: ='Background Calculations'!S36*0.85 -> 18.254634
E45: NA | G45: NA | I45: NA
A46: Decision Point > | B46: Best PLC or ARC-CO | E46: =MAX(E43:E44) -> 0 | G46: =MAX(G43:G44) -> 12.6593509 | I46: =MAX(I43:I44) -> 18.254634
E48: Program Year Choice? (With SCO)
B49: Projected Program & Insurance Payments | E49: CORN | G49: SOYBEANS | I49: WHEAT
A50: Per Base + Actual Acre | B50: PLC w/ SCO | E50: =(E30-E29)+E43 -> 0 | G50: =(G30-G29)+G43 -> 0 | I50: =(I30-I29)+I43 -> 0
A51: Per Base Acre | B51: ARC-CO | E51: =E44 -> 0 | G51: =G44 -> 12.6593509 | I51: =I44 -> 18.254634
A52: Decision Point > | B52: =SUM(E52+G52+I52) -> 30.9139849 | C52: Best PLC w/ SCO or ARC-CO | E52: =MAX(E50:E51) -> 0 | G52: =MAX(G50:G51) -> 12.6593509 | I52: =MAX(I50:I51) -> 18.254634
A55: Total Farm | B55: Total Projected Payments | E55: CORN | G55: SOYBEANS | I55: WHEAT
B56: PLC w/ SCO | E56: =((E30-E29)*C12)+(E43*C9) -> 0 | G56: =((G30-G29)*D12)+(G43*D9) -> 0 | I56: =((I30-I29)*E12)+(I43*E9) -> 0
B57: ARC-CO | E57: =E44*C9 -> 0 | G57: =G44*D9 -> 12.6593509 | I57: =I44*E9 -> 18.254634

Sheet MYA Prices (hidden)
A1: 1 | B1: 2 | C1: 3 | D1: 4 | E1: 5 | F1: 6 | G1: 7 | H1: 8 | I1: 9 | J1: 10 | K1: 11 | L1: 12 | M1: 13 | N1: 14 | O1: 15 | P1: 16 | Q1: 17 | R1: 18 | S1: 19 | T1: 20
B2: 1 | C2: 2 | D2: 3 | E2: 4
C3: Corn 25/26 | D3: SOY 25/26 | E3: Wheat 25/26
B4: CBO Baseline | C4: 4.1 | D4: 9.9 | E4: 5.65
B5: FAPRI | C5: 4.13 | D5: 9.65 | E5: 5.79
B6: Futures '25 Harvest (as of 2/11/2025) | C6: 4.71 | D6: 10.57 | E6: 6.04
B7: Kansas State (2025/2026) | C7: 4.3 | D7: 10.22 | E7: 5.71
B8: USDA/ERS MYA Proj (2024/2025) | C8: 4.36 | D8: 9.85 | E8: 5.54
B9: USDA/ERS Ag Baseline Projections | C9: 3.9 | D9: 10 | E9: 5.8
B10: USDA/WASDE (2024/2025) | C10: 4.35 | D10: 10.1 | E10: 5.55
B11: ARC-CO Benchmark Price | C11: ='Background Calculations'!M54 -> 5.03 | D11: ='Background Calculations'!M55 -> 12.17 | E11: 6.72
B12: Effective Reference Prices | C12: ='Farm Bill Calculator'!E16 -> 4.255 | D12: ='Farm Bill Calculator'!G16 -> 9.66 | E12: ='Farm Bill Calculator'!I16 -> 5.564666667
B13: Statutory Reference Prices | C13: 3.7 | D13: 8.4 | E13: 5.5
B14: Average | C14: =AVERAGEIF(C4:C10,"<>0") -> 4.264285714 | D14: =AVERAGEIF(D4:D10,"<>0") -> 10.04142857 | E14: =AVERAGEIF(E4:E10,"<>0") -> 5.725714286
D17: Updated 2/11/2025
O18: UPDATES
D19: FAPRI - Food and Agricultural Policy Research Institute (http://www.fapri.missouri.edu/) | I19: http://www.fapri.missouri.edu/
D20: USDA's Agricultural Projections to 2028
D21: CBO's April 2024 Baseline | G21: https://www.cbo.gov/data/baseline-projections-selected-programs#25
D23: K State Ag Manager | G23: https://www.agmanager.info/crop-insurance/risk-management-strategies/projections-and-sources-mya-prices-arc-and-plc-commodity
D27: https://www.agmanager.info/crop-insurance/risk-management-strategies/mya-price-estimates-updated-arc-and-plc-commodity-0
D28: https://www.usda.gov/oce/commodity/wasde/
D29: https://www.fapri.missouri.edu/
D30: https://www.ers.usda.gov/data-products/season-average-price-forecasts/

Sheet Background Calculations (hidden)
C1: ='Farm Bill Calculator'!C4 -> Shiawassee
D2: County Trend Yield from FSA ARC-CO | E2: 2017 | F2: 2018 | G2: 2019 | H2: 2020 | I2: 2021 | J2: 2022 | K2: 2023 | L2: 2024 | M2: 2025
B3: all | C3: Corn | D3: ='Farm Bill Calculator'!$C$4&C3&B3 -> ShiawasseeCornall | E3: =IFERROR(VLOOKUP($D3,'ARC-CO Calculations'!$B$5:$Q$289,9,0),0) -> 165.59 | F3: =IFERROR(VLOOKUP($D3,'ARC-CO Calculations'!$B$5:$Q$289,10,0),0) -> 160.92 | G3: =IFERROR(VLOOKUP($D3,'ARC-CO Calculations'!$B$5:$Q$289,11,0),0) -> 129.06 | H3: =IFERROR(VLOOKUP($D3,'ARC-CO Calculations'!$B$5:$Q$289,12,0),0) -> 125.4 | I3: =IFERROR(VLOOKUP($D3,'ARC-CO Calculations'!$B$5:$Q$289,13,0),0) -> 165.35 | J3: =IFERROR(VLOOKUP($D3,'ARC-CO Calculations'!$B$5:$Q$289,14,0),0) -> 144.81 | K3: =IFERROR(VLOOKUP($D3,'ARC-CO Calculations'!$B$5:$Q$289,15,0),0) -> 120.06 | L3: =IFERROR(VLOOKUP($D3,'ARC-CO Calculations'!$B$5:$Q$289,16,0),0) -> 137.996 | M3: =IFERROR(VLOOKUP($D3,'ARC-CO Calculations'!$B$5:$R$289,17,0),0) -> 139.7832
B4: all | C4: soybeans | D4: ='Farm Bill Calculator'!$C$4&C4&B4 -> Shiawasseesoybeansall | E4: =IFERROR(VLOOKUP($D4,'ARC-CO Calculations'!$B$5:$Q$289,9,0),0) -> 0 | F4: =IFERROR(VLOOKUP($D4,'ARC-CO Calculations'!$B$5:$Q$289,10,0),0) -> 0 | G4: =IFERROR(VLOOKUP($D4,'ARC-CO Calculations'!$B$5:$Q$289,11,0),0) -> 0 | H4: =IFERROR(VLOOKUP($D4,'ARC-CO Calculations'!$B$5:$Q$289,12,0),0) -> 0 | I4: =IFERROR(VLOOKUP($D4,'ARC-CO Calculations'!$B$5:$Q$289,13,0),0) -> 0 | J4: =IFERROR(VLOOKUP($D4,'ARC-CO Calculations'!$B$5:$Q$289,14,0),0) -> 0 | K4: =IFERROR(VLOOKUP($D4,'ARC-CO Calculations'!$B$5:$Q$289,15,0),0) -> 0 | L4: =IFERROR(VLOOKUP($D4,'ARC-CO Calculations'!$B$5:$Q$289,16,0),0) -> 0 | M4: =IFERROR(VLOOKUP($D4,'ARC-CO Calculations'!$B$5:$R$289,17,0),0) -> 0
B5: all | C5: Wheat | D5: ='Farm Bill Calculator'!$C$4&C5&B5 -> ShiawasseeWheatall | E5: =IFERROR(VLOOKUP($D5,'ARC-CO Calculations'!$B$5:$Q$289,9,0),0) -> 71.31 | F5: =IFERROR(VLOOKUP($D5,'ARC-CO Calculations'!$B$5:$Q$289,10,0),0) -> 91.87 | G5: =IFERROR(VLOOKUP($D5,'ARC-CO Calculations'!$B$5:$Q$289,11,0),0) -> 79.47 | H5: =IFERROR(VLOOKUP($D5,'ARC-CO Calculations'!$B$5:$Q$289,12,0),0) -> 93.71 | I5: =IFERROR(VLOOKUP($D5,'ARC-CO Calculations'!$B$5:$Q$289,13,0),0) -> 92.71 | J5: =IFERROR(VLOOKUP($D5,'ARC-CO Calculations'!$B$5:$Q$289,14,0),0) -> 96.53 | K5: =IFERROR(VLOOKUP($D5,'ARC-CO Calculations'!$B$5:$Q$289,15,0),0) -> 94.68 | L5: =IFERROR(VLOOKUP($D5,'ARC-CO Calculations'!$B$5:$Q$289,16,0),0) -> 92.16 | M5: =IFERROR(VLOOKUP($D5,'ARC-CO Calculations'!$B$5:$R$289,17,0),0) -> 94.698
B6: Irrigated | C6: Corn | D6: ='Farm Bill Calculator'!$C$4&C6&B6 -> ShiawasseeCornIrrigated | E6: =IFERROR(VLOOKUP($D6,'ARC-CO Calculations'!$B$5:$Q$289,9,0),0) -> 0 | F6: =IFERROR(VLOOKUP($D6,'ARC-CO Calculations'!$B$5:$Q$289,10,0),0) -> 0 | G6: =IFERROR(VLOOKUP($D6,'ARC-CO Calculations'!$B$5:$Q$289,11,0),0) -> 0 | H6: =IFERROR(VLOOKUP($D6,'ARC-CO Calculations'!$B$5:$Q$289,12,0),0) -> 0 | I6: =IFERROR(VLOOKUP($D6,'ARC-CO Calculations'!$B$5:$Q$289,13,0),0) -> 0 | J6: =IFERROR(VLOOKUP($D6,'ARC-CO Calculations'!$B$5:$Q$289,14,0),0) -> 0 | K6: =IFERROR(VLOOKUP($D6,'ARC-CO Calculations'!$B$5:$Q$289,15,0),0) -> 0 | L6: =IFERROR(VLOOKUP($D6,'ARC-CO Calculations'!$B$5:$Q$289,16,0),0) -> 0 | M6: =IFERROR(VLOOKUP($D6,'ARC-CO Calculations'!$B$5:$R$289,17,0),0) -> 0
B7: Irrigated | C7: soybeans | D7: ='Farm Bill Calculator'!$C$4&C7&B7 -> ShiawasseesoybeansIrrigated | E7: =IFERROR(VLOOKUP($D7,'ARC-CO Calculations'!$B$5:$Q$289,9,0),0) -> 40.34 | F7: =IFERROR(VLOOKUP($D7,'ARC-CO Calculations'!$B$5:$Q$289,10,0),0) -> 52.23 | G7: =IFERROR(VLOOKUP($D7,'ARC-CO Calculations'!$B$5:$Q$289,11,0),0) -> 49.1 | H7: =IFERROR(VLOOKUP($D7,'ARC-CO Calculations'!$B$5:$Q$289,12,0),0) -> 56.96 | I7: =IFERROR(VLOOKUP($D7,'ARC-CO Calculations'!$B$5:$Q$289,13,0),0) -> 61.27 | J7: =IFERROR(VLOOKUP($D7,'ARC-CO Calculations'!$B$5:$Q$289,14,0),0) -> 58.04 | K7: =IFERROR(VLOOKUP($D7,'ARC-CO Calculations'!$B$5:$Q$289,15,0),0) -> 57.71 | L7: =IFERROR(VLOOKUP($D7,'ARC-CO Calculations'!$B$5:$Q$289,16,0),0) -> 57.116 | M7: =IFERROR(VLOOKUP($D7,'ARC-CO Calculations'!$B$5:$R$289,17,0),0) -> 58.7192
B8: nonirrigated | C8: Corn | D8: ='Farm Bill Calculator'!$C$4&C8&B8 -> ShiawasseeCornnonirrigated | E8: =IFERROR(VLOOKUP($D8,'ARC-CO Calculations'!$B$5:$Q$289,9,0),0) -> 0 | F8: =IFERROR(VLOOKUP($D8,'ARC-CO Calculations'!$B$5:$Q$289,10,0),0) -> 0 | G8: =IFERROR(VLOOKUP($D8,'ARC-CO Calculations'!$B$5:$Q$289,11,0),0) -> 0 | H8: =IFERROR(VLOOKUP($D8,'ARC-CO Calculations'!$B$5:$Q$289,12,0),0) -> 0 | I8: =IFERROR(VLOOKUP($D8,'ARC-CO Calculations'!$B$5:$Q$289,13,0),0) -> 0 | J8: =IFERROR(VLOOKUP($D8,'ARC-CO Calculations'!$B$5:$Q$289,14,0),0) -> 0 | K8: =IFERROR(VLOOKUP($D8,'ARC-CO Calculations'!$B$5:$Q$289,15,0),0) -> 0 | L8: =IFERROR(VLOOKUP($D8,'ARC-CO Calculations'!$B$5:$Q$289,16,0),0) -> 0 | M8: =IFERROR(VLOOKUP($D8,'ARC-CO Calculations'!$B$5:$R$289,17,0),0) -> 0
B9: nonirrigated | C9: soybeans | D9: ='Farm Bill Calculator'!$C$4&C9&B9 -> Shiawasseesoybeansnonirrigated | E9: =IFERROR(VLOOKUP($D9,'ARC-CO Calculations'!$B$5:$Q$289,9,0),0) -> 42.48 | F9: =IFERROR(VLOOKUP($D9,'ARC-CO Calculations'!$B$5:$Q$289,10,0),0) -> 49.86 | G9: =IFERROR(VLOOKUP($D9,'ARC-CO Calculations'!$B$5:$Q$289,11,0),0) -> 43.24 | H9: =IFERROR(VLOOKUP($D9,'ARC-CO Calculations'!$B$5:$Q$289,12,0),0) -> 33.96 | I9: =IFERROR(VLOOKUP($D9,'ARC-CO Calculations'!$B$5:$Q$289,13,0),0) -> 43.66 | J9: =IFERROR(VLOOKUP($D9,'ARC-CO Calculations'!$B$5:$Q$289,14,0),0) -> 44.71 | K9: =IFERROR(VLOOKUP($D9,'ARC-CO Calculations'!$B$5:$Q$289,15,0),0) -> 35.11 | L9: =IFERROR(VLOOKUP($D9,'ARC-CO Calculations'!$B$5:$Q$289,16,0),0) -> 40.526 | M9: =IFERROR(VLOOKUP($D9,'ARC-CO Calculations'!$B$5:$R$289,17,0),0) -> 39.9832
B10: Irrigated | C10: Wheat | D10: ='Farm Bill Calculator'!$C$4&C10&B10 -> ShiawasseeWheatIrrigated | E10: =IFERROR(VLOOKUP($D10,'ARC-CO Calculations'!$B$5:$Q$289,9,0),0) -> 0 | F10: =IFERROR(VLOOKUP($D10,'ARC-CO Calculations'!$B$5:$Q$289,10,0),0) -> 0 | G10: =IFERROR(VLOOKUP($D10,'ARC-CO Calculations'!$B$5:$Q$289,11,0),0) -> 0 | H10: =IFERROR(VLOOKUP($D10,'ARC-CO Calculations'!$B$5:$Q$289,12,0),0) -> 0 | I10: =IFERROR(VLOOKUP($D10,'ARC-CO Calculations'!$B$5:$Q$289,13,0),0) -> 0 | J10: =IFERROR(VLOOKUP($D10,'ARC-CO Calculations'!$B$5:$Q$289,14,0),0) -> 0 | K10: =IFERROR(VLOOKUP($D10,'ARC-CO Calculations'!$B$5:$Q$289,15,0),0) -> 0 | L10: =IFERROR(VLOOKUP($D10,'ARC-CO Calculations'!$B$5:$Q$289,16,0),0) -> 0 | M10: =IFERROR(VLOOKUP($D10,'ARC-CO Calculations'!$B$5:$R$289,17,0),0) -> 0
B11: nonirrigated | C11: Wheat | D11: ='Farm Bill Calculator'!$C$4&C11&B11 -> ShiawasseeWheatnonirrigated | E11: =IFERROR(VLOOKUP($D11,'ARC-CO Calculations'!$B$5:$Q$289,9,0),0) -> 0 | F11: =IFERROR(VLOOKUP($D11,'ARC-CO Calculations'!$B$5:$Q$289,10,0),0) -> 0 | G11: =IFERROR(VLOOKUP($D11,'ARC-CO Calculations'!$B$5:$Q$289,11,0),0) -> 0 | H11: =IFERROR(VLOOKUP($D11,'ARC-CO Calculations'!$B$5:$Q$289,12,0),0) -> 0 | I11: =IFERROR(VLOOKUP($D11,'ARC-CO Calculations'!$B$5:$Q$289,13,0),0) -> 0 | J11: =IFERROR(VLOOKUP($D11,'ARC-CO Calculations'!$B$5:$Q$289,14,0),0) -> 0 | K11: =IFERROR(VLOOKUP($D11,'ARC-CO Calculations'!$B$5:$Q$289,15,0),0) -> 0 | L11: =IFERROR(VLOOKUP($D11,'ARC-CO Calculations'!$B$5:$Q$289,16,0),0) -> 0 | M11: =IFERROR(VLOOKUP($D11,'ARC-CO Calculations'!$B$5:$R$289,17,0),0) -> 0
C13: County Olympic Average Yield ARC-CO | E13: 2017 | F13: 2018 | G13: 2019 | H13: 2020 | I13: 2021 | J13: 2022 | K13: 2023 | L13: 2024 | M13: 2025
C14: Corn | D14: =D3 -> ShiawasseeCornall | G14: =(SUM(E3:E3)-MAX(E3:E3)-MIN(E3:E3))/3 -> -55.19666667 | H14: =(SUM(E3:F3)-MAX(E3:F3)-MIN(E3:F3))/3 -> 0 | I14: =(SUM(E3:G3)-MAX(E3:G3)-MIN(E3:G3))/3 -> 53.64 | J14: =(SUM(E3:H3)-MAX(E3:H3)-MIN(E3:H3))/3 -> 96.66 | K14: =(SUM(E3:I3)-MAX(E3:I3)-MIN(E3:I3))/3 -> 151.7766667 | L14: =(SUM(E3:I3)-MAX(E3:I3)-MIN(E3:I3))/3 -> 151.7766667 | M14: =(SUM(G3:K3)-MAX(G3:K3)-MIN(G3:K3))/3 -> 133.09
C15: soybeans | D15: Shiawasseesoybeansall | G15: =((SUM(E4:E4)-MAX(E4:E4)-MIN(E4:E4)))/3 -> 0 | H15: =(SUM(E4:F4)-MAX(E4:F4)-MIN(E4:F4))/3 -> 0 | I15: 0 | J15: 0 | K15: 0 | L15: =(SUM(E4:I4)-MAX(E4:I4)-MIN(E4:I4))/3 -> 0 | M15: =(SUM(G4:K4)-MAX(G4:K4)-MIN(G4:K4))/3 -> 0
C16: Wheat | D16: ShiawasseeWheatall | G16: =(SUM(E5:E5)-MAX(E5:E5)-MIN(E5:E5))/3 -> -23.77 | H16: 0 | I16: 26.49 | J16: 57.11333333 | K16: 88.01666667 | L16: 88.01666667 | M16: 93.7
C17: Corn | D17: ShiawasseeCornIrrigated | G17: =(SUM(E6:E6)-MAX(E6:E6)-MIN(E6:E6))/3 -> 0 | H17: 0 | I17: 0 | J17: =(SUM(E6:H6)-MAX(E6:H6)-MIN(E6:H6))/3 -> 0 | K17: =(SUM(E6:I6)-MAX(E6:I6)-MIN(E6:I6))/3 -> 0 | L17: 0 | M17: 0
C18: soybeans | D18: ShiawasseesoybeansIrrigated | G18: =(SUM(E7:E7)-MAX(E7:E7)-MIN(E7:E7))/3 -> -13.44666667 | H18: 0 | I18: 16.36666667 | J18: 33.77666667 | K18: 52.76333333 | L18: 52.76333333 | M18: 57.57
C19: Corn | D19: =D8 -> ShiawasseeCornnonirrigated | G19: =(SUM(E8:E8)-MAX(E8:E8)-MIN(E8:E8))/3 -> 0 | H19: 0 | I19: 0 | J19: 0 | K19: 0 | L19: 0 | M19: 0
C20: soybeans | D20: =D9 -> Shiawasseesoybeansnonirrigated | G20: =(SUM(E9:E9)-MAX(E9:E9)-MIN(E9:E9))/3 -> -14.16 | H20: 0 | I20: 14.41333333 | J20: 28.57333333 | K20: 43.12666667 | L20: =(SUM(E9:I9)-MAX(E9:I9)-MIN(E9:I9))/3 -> 43.12666667 | M20: 40.67
D21: =D10 -> ShiawasseeWheatIrrigated | G21: =(SUM(E10:E10)-MAX(E10:E10)-MIN(E10:E10))/3 -> 0 | H21: =(SUM(E10:F10)-MAX(E10:F10)-MIN(E10:F10))/3 -> 0 | I21: =(SUM(E10:G10)-MAX(E10:G10)-MIN(E10:G10))/3 -> 0 | J21: =(SUM(E10:H10)-MAX(E10:H10)-MIN(E10:H10))/3 -> 0 | K21: =(SUM(E10:I10)-MAX(E10:I10)-MIN(E10:I10))/3 -> 0 | L21: =(SUM(E10:I10)-MAX(E10:I10)-MIN(E10:I10))/3 -> 0 | M21: 0
C22: FSA County Trend Yields for Arc Co NOT USED | D22: ShiawasseeWheatnonirrigated | G22: 0 | H22: 0 | I22: 0 | J22: 0 | K22: 0 | L22: 0 | M22: 0
B23: Problem Irrigated Yields for counties with out irrigated history back to 2013 | C23: Corn | D23: 0 | G23: 0 | H23: 0 | I23: 0 | J23: 0 | K23: 0 | L23: 0 | M23: 0
C24: soybeans | D24: 0 | G24: -672.3333333 | H24: 0 | I24: 672.6666667 | J24: 1345.666667 | K24: 2019 | L24: 2019 | M24: 2021
C25: Wheat | D25: ShiawasseeCornall | G25: 0 | H25: 0 | I25: 18.39888889 | J25: 0 | K25: 0 | L25: 0 | M25: 50.1
C26: Corn | D26: Shiawasseesoybeansall | G26: 0 | H26: 0 | I26: 0 | J26: 0 | K26: 0 | L26: 0 | M26: 0
C27: soybeans | D27: ShiawasseeWheatall | G27: 0 | H27: 0 | I27: 7.923333333 | J27: 0 | K27: 0 | L27: 0 | M27: 27.86777778
C28: Corn | D28: ShiawasseeCornIrrigated | G28: 0 | H28: 0 | I28: 0 | J28: 0 | K28: 0 | L28: 0 | M28: 0
C29: soybeans | D29: ShiawasseesoybeansIrrigated | G29: 0 | H29: 0 | I29: 4.482222222 | J29: 0 | K29: 0 | L29: 0 | M29: 16.71444444
C30: Wheat | D30: =D10 -> ShiawasseeWheatIrrigated | G30: =(SUM(E19:E19)-MAX(E19:E19)-MIN(E19:E19))/3 -> 0 | H30: =(SUM(E19:F19)-MAX(E19:F19)-MIN(E19:F19))/3 -> 0 | I30: 0 | J30: 0 | K30: =(SUM(E10:I10)-MAX(E10:I10)-MIN(E10:I10))/3 -> 0 | L30: =(SUM(E10:I10)-MAX(E10:I10)-MIN(E10:I10))/3 -> 0 | M30: =(SUM(G10:K10)-MAX(G10:K10)-MIN(G10:K10))/3 -> 0
C31: Wheat | D31: =D11 -> ShiawasseeWheatnonirrigated | G31: 0 | H31: 0 | I31: 0 | J31: 0 | K31: =(SUM(E11:I11)-MAX(E11:I11)-MIN(E11:I11))/3 -> 0 | L31: =(SUM(E11:I11)-MAX(E11:I11)-MIN(E11:I11))/3 -> 0 | M31: =(SUM(G11:K11)-MAX(G11:K11)-MIN(G11:K11))/3 -> 0
C33: County Benchmark Weighted Olympic average Yield | E33: 2017 | F33: 2018 | G33: 2019 | H33: 2020 | I33: 2021 | J33: 2022 | K33: 2023 | L33: 2024 | M33: 2025 | O33: Benchmark Revenue | P33: Benchmark Guarantee | Q33: Cap Rate | R33: Actual Revenue | S33: Projected Payment
D34: Corn | E34: =('Background Calculations'!E$14)+('Background Calculations'!E17*'Farm Bill Calculator'!$C$11)+('Background Calculations'!E19*(1-'Farm Bill Calculator'!$C$11)) -> 0 | F34: =('Background Calculations'!F$14)+('Background Calculations'!F17*'Farm Bill Calculator'!$C$11)+('Background Calculations'!F19*(1-'Farm Bill Calculator'!$C$11)) -> 0 | G34: =('Background Calculations'!G$14)+('Background Calculations'!G17*'Farm Bill Calculator'!$C$11)+('Background Calculations'!G19*(1-'Farm Bill Calculator'!$C$11)) -> -55.19666667 | H34: =('Background Calculations'!H$14)+('Background Calculations'!H17*'Farm Bill Calculator'!$C$11)+('Background Calculations'!H19*(1-'Farm Bill Calculator'!$C$11)) -> 0 | I34: =('Background Calculations'!I$14)+('Background Calculations'!I17*'Farm Bill Calculator'!$C$11)+('Background Calculations'!I19*(1-'Farm Bill Calculator'!$C$11)) -> 53.64 | J34: =('Background Calculations'!J$14)+('Background Calculations'!J17*'Farm Bill Calculator'!$C$11)+('Background Calculations'!J19*(1-'Farm Bill Calculator'!$C$11)) -> 96.66 | K34: =('Background Calculations'!K$14)+('Background Calculations'!K17*'Farm Bill Calculator'!$C$11)+('Background Calculations'!K19*(1-'Farm Bill Calculator'!$C$11)) -> 151.7766667 | L34: =('Background Calculations'!L$14)+('Background Calculations'!L17*'Farm Bill Calculator'!$C$11)+('Background Calculations'!L19*(1-'Farm Bill Calculator'!$C$11)) -> 151.7766667 | M34: =('Background Calculations'!M$14)+('Background Calculations'!M17*'Farm Bill Calculator'!$C$11)+('Background Calculations'!M19*(1-'Farm Bill Calculator'!$C$11)) -> 133.09 | O34: =M34*'MYA Prices'!C11 -> 669.4427 | P34: =O34*0.86 -> 575.720722 | Q34: =O34*0.1 -> 66.94427 | R34: ='Farm Bill Calculator'!E37*'Farm Bill Calculator'!E23 -> 578.9415 | S34: =MIN(IF(R34<P34,P34-R34,0),Q34) -> 0
D35: Soybeans | E35: =('Background Calculations'!E$15)+('Background Calculations'!E$18*'Farm Bill Calculator'!$D$11)+('Background Calculations'!E$20*(1-'Farm Bill Calculator'!$D$11)) -> 0 | F35: =('Background Calculations'!F$15)+('Background Calculations'!F$18*'Farm Bill Calculator'!$D$11)+('Background Calculations'!F$20*(1-'Farm Bill Calculator'!$D$11)) -> 0 | G35: =('Background Calculations'!G$15)+('Background Calculations'!G$18*'Farm Bill Calculator'!$D$11)+('Background Calculations'!G$20*(1-'Farm Bill Calculator'!$D$11)) -> -14.16 | H35: =('Background Calculations'!H$15)+('Background Calculations'!H$18*'Farm Bill Calculator'!$D$11)+('Background Calculations'!H$20*(1-'Farm Bill Calculator'!$D$11)) -> 0 | I35: =('Background Calculations'!I$15)+('Background Calculations'!I$18*'Farm Bill Calculator'!$D$11)+('Background Calculations'!I$20*(1-'Farm Bill Calculator'!$D$11)) -> 14.41333333 | J35: =('Background Calculations'!J$15)+('Background Calculations'!J$18*'Farm Bill Calculator'!$D$11)+('Background Calculations'!J$20*(1-'Farm Bill Calculator'!$D$11)) -> 28.57333333 | K35: =('Background Calculations'!K$15)+('Background Calculations'!K$18*'Farm Bill Calculator'!$D$11)+('Background Calculations'!K$20*(1-'Farm Bill Calculator'!$D$11)) -> 43.12666667 | L35: =('Background Calculations'!L$15)+('Background Calculations'!L$18*'Farm Bill Calculator'!$D$11)+('Background Calculations'!L$20*(1-'Farm Bill Calculator'!$D$11)) -> 43.12666667 | M35: =('Background Calculations'!M$15)+('Background Calculations'!M$18*'Farm Bill Calculator'!$D$11)+('Background Calculations'!M$20*(1-'Farm Bill Calculator'!$D$11)) -> 40.67 | O35: =M35*'MYA Prices'!D11 -> 494.9539 | P35: =O35*0.86 -> 425.660354 | Q35: =O35*0.1 -> 49.49539 | R35: ='Farm Bill Calculator'!G37*'Farm Bill Calculator'!G23 -> 410.767 | S35: =MIN(IF(R35<P35,P35-R35,0),Q35) -> 14.893354
D36: Wheat | E36: =('Background Calculations'!E$16)+('Background Calculations'!E$19*'Farm Bill Calculator'!$E$11)+('Background Calculations'!E$19*(1-'Farm Bill Calculator'!$E$11)) -> 0 | F36: =('Background Calculations'!F$16)+('Background Calculations'!F$19*'Farm Bill Calculator'!$E$11)+('Background Calculations'!F$19*(1-'Farm Bill Calculator'!$E$11)) -> 0 | G36: =('Background Calculations'!G$16)+('Background Calculations'!G$30*'Farm Bill Calculator'!$E$11)+('Background Calculations'!G$31*(1-'Farm Bill Calculator'!$E$11)) -> -23.77 | H36: =('Background Calculations'!H$16)+('Background Calculations'!H$30*'Farm Bill Calculator'!$E$11)+('Background Calculations'!H$31*(1-'Farm Bill Calculator'!$E$11)) -> 0 | I36: =('Background Calculations'!I$16)+('Background Calculations'!I$30*'Farm Bill Calculator'!$E$11)+('Background Calculations'!I$31*(1-'Farm Bill Calculator'!$E$11)) -> 26.49 | J36: =('Background Calculations'!J$16)+('Background Calculations'!J$30*'Farm Bill Calculator'!$E$11)+('Background Calculations'!J$31*(1-'Farm Bill Calculator'!$E$11)) -> 57.11333333 | K36: =('Background Calculations'!K$16)+('Background Calculations'!K$30*'Farm Bill Calculator'!$E$11)+('Background Calculations'!K$31*(1-'Farm Bill Calculator'!$E$11)) -> 88.01666667 | L36: =('Background Calculations'!L$16)+('Background Calculations'!L$30*'Farm Bill Calculator'!$E$11)+('Background Calculations'!L$31*(1-'Farm Bill Calculator'!$E$11)) -> 88.01666667 | M36: =('Background Calculations'!M$16)+('Background Calculations'!M$30*'Farm Bill Calculator'!$E$11)+('Background Calculations'!M$31*(1-'Farm Bill Calculator'!$E$11)) -> 93.7 | O36: =M36*'MYA Prices'!E11 -> 629.664 | P36: 541.51104 | Q36: 62.9664 | R36: ='Farm Bill Calculator'!I37*'Farm Bill Calculator'!I23 -> 520.035 | S36: =MIN(IF(R36<P36,P36-R36,0),Q36) -> 21.47604
C39: Actual National Market Year Average Price (MYA)
E40: 2017 | F40: 2018 | G40: 2019 | H40: 2020 | I40: 2021 | J40: 2022 | K40: 2023 | L40: 2024 | M40: 2025 | O40: PLC Olympic Average | P40: 85% of Olympic Average | Q40: 115% Cap | R40: Statutory Reference Price | S40: Effective Reference Price | T40: Effective Reference Price Cap
D41: Corn MYA Producer Price 3.70 | E41: 3.36 | F41: 3.61 | G41: 3.56 | H41: 4.53 | I41: 6 | J41: 6.54 | K41: 4.55 | O41: =(SUM(G41:K41)-MIN(G41:K41)-MAX(G41:K41))/(COUNT(G41:K41)-2) -> 5.026666667 | P41: =O41*0.85 -> 4.272666667 | Q41: =R41*1.15 -> 4.255 | R41: 3.7 | S41: =IF(P41>R41,P41,R41) -> 4.272666667 | T41: =IF(S41>Q41,Q41,P41) -> 4.255
D42: Soy MYA Producer Price 8.40 | E42: 9.33 | F42: 8.48 | G42: 8.57 | H42: 10.8 | I42: 13.3 | J42: 14.2 | K42: 12.4 | O42: =(SUM(G42:K42)-MIN(G42:K42)-MAX(G42:K42))/(COUNT(G42:K42)-2) -> 12.16666667 | P42: =O42*0.85 -> 10.34166667 | Q42: =R42*1.15 -> 9.66 | R42: 8.4 | S42: =IF(P42>R42,P42,R42) -> 10.34166667 | T42: =IF(S42>Q42,Q42,P42) -> 9.66
D43: Wheat MYA Producer Price 5.50 | E43: 4.72 | F43: 5.16 | G43: 4.58 | H43: 5.05 | I43: 7.63 | J43: 8.83 | K43: 6.96 | O43: =(SUM(G43:K43)-MIN(G43:K43)-MAX(G43:K43))/(COUNT(G43:K43)-2) -> 6.546666667 | P43: =O43*0.85 -> 5.564666667 | Q43: 6.325 | R43: 5.5 | S43: 5.564666667 | T43: =IF(S43>Q43,Q43,P43) -> 5.564666667
C48: Minimum Prices for Revenue Guarantees | E48: 2017 | F48: =F40 -> 2018 | G48: 2019 | H48: 2020 | I48: 2021 | J48: 2022 | K48: 2023 | L48: 2024 | M48: 2025
D49: Corn MYA Producer Price 3.70 | E49: =IF(E41<3.7,3.7,E41) -> 3.7 | F49: =IF(F41<4.01,4.01,F41) -> 4.01 | G49: =IF(G41<4.01,4.01,G41) -> 4.01 | H49: 4.53 | I49: 6 | J49: 6.54 | K49: 4.55
D50: Soy MYA Producer Price 8.40 | E50: =IF(E42<8.4,8.4,E42) -> 9.33 | F50: =IF(F42<9.26,9.26,F42) -> 9.26 | G50: =IF(G42<9.26,9.26,G42) -> 9.26 | H50: 10.8 | I50: 13.3 | J50: 14.2 | K50: 12.4
D51: Wheat MYA Producer Price 5.50 | E51: =IF(E43<5.5,5.5,E43) -> 5.5 | F51: 5.5 | G51: 5.5 | H51: 5.5 | I51: 7.63 | J51: 8.83 | K51: 6.96
C53: Benchmark Olympic Price for: | F53: 2018 | G53: 2019 | H53: 2020 | I53: 2021 | J53: 2022 | K53: 2023 | L53: 2024 | M53: 2025
C54: Corn | F54: 2.47 | G54: 3.7 | H54: 3.7 | I54: 3.7 | J54: 3.7 | K54: =ROUND(((SUM(E49:I49)-MAX(E49:I49)-MIN(E49:I49))/3),2) -> 4.18 | L54: =ROUND(((SUM(F49:J49)-MAX(F49:J49)-MIN(F49:J49))/3),2) -> 4.85 | M54: =ROUND(((SUM(G49:K49)-MAX(G49:K49)-MIN(G49:K49))/3),2) -> 5.03
C55: Soys | F55: 6.52 | G55: 9.63 | H55: 9.25 | I55: 8.95 | J55: 9.12 | K55: =ROUND(((SUM(E50:I50)-MAX(E50:I50)-MIN(E50:I50))/3),2) -> 9.8 | L55: =ROUND(((SUM(F50:J50)-MAX(F50:J50)-MIN(F50:J50))/3),2) -> 11.12 | M55: =ROUND(((SUM(G50:K50)-MAX(G50:K50)-MIN(G50:K50))/3),2) -> 12.17
C56: Wheat | F56: 3.83 | G56: 5.66 | H56: 5.5 | I56: 5.5 | J56: 5.5 | K56: =ROUND(((SUM(E51:I51)-MAX(E51:I51)-MIN(E51:I51))/3),2) -> 5.5 | L56: =ROUND(((SUM(F51:J51)-MAX(F51:J51)-MIN(F51:J51))/3),2) -> 6.21 | M56: 6.72

Sheet ARC-CO Calculations (hidden)
C1: ARC-CO TREND ADJUSTED YIELDS, BENCHMARK YIELDS AND GUARANTEE REVENUES FOR PROGRAM YEAR 2025 | U1: PROJECTED Program Year 2025 Benchmark Yields and Revenues
U2: A | V2: B | W2: C | X2: D | Y2: E | Z2: F | AA2: G | AB2: H | AC2: I | AD2: J
B3: ='Farm Bill Calculator'!C4 -> Shiawassee | W3: (A * B) | X3: (86% of C) | Y3: (10% of C) | AB3: (F * G) | AC3: (D - H), not less than 0 | AD3: Lesser of E or I (capped at 10% of Benchmark)
C4: ST_Cty | D4: State Name | E4: County Name | F4: Sub County | G4: Crop Name | H4: Unit | I4: ARC-CO Yield Designation | J4: 2017 trend adjusted (county yield or 80% of T) | K4: 2018 trend adjusted (county yield or 80% of T) | L4: 2019 trend adjusted (county yield or 80% of T) | M4: 2020 trend adjusted (county yield or 80% of T) | N4: 2021 trend adjusted (county yield or 80% of T) | O4: 2022 trend adjusted (county yield or 80% of T) | P4: 2023 trend adjusted (county yield or 80% of T) | Q4: Projected 2024 trend adjusted (county yield or 80% of T) | R4: Projected 2025 trend adjusted (county yield or 80% of T) | S4: Trend adjustments 2024 | U4: 2025 Bench Mark (2019-23 olympic avg) | V4: 2025 Bench Mark Price (2018-22 olympic avg) | W4: 2025 Benchmark Revenue | X4: 2025 Guarantee Revenue | Y4: 2025 Maximum Payment Rate | Z4: Projected 2025 Actual Yield | AA4: Projected 2025 National Price | AB4: Projected 2025 Actual Revenue | AC4: Projected 2025 Formula Payment Rate | AD4: Projected 2025 ARC-CO Payment Rate
B5: =E5&G5&I5 -> AlconaCornAll | C5: 26001 | D5: Michigan | E5: Alcona | G5: Corn | H5: Bushel | I5: All | J5: 134.49 | K5: 126.52 | L5: 96.64 | M5: 147.74 | N5: 193.4 | O5: 155.94 | P5: 142.64 | Q5: =AVERAGE(L5:P5)+S5 -> 148.572 | R5: =AVERAGE(M5:Q5)+S5 -> 158.9584 | S5: 1.3 | U5: =(SUM(L5:P5)-MIN(L5:P5)-MAX(L5:P5))/(COUNT(L5:P5)-2) -> 148.7733333 | V5: ='Background Calculations'!$M$54 -> 5.03 | W5: =U5*V5 -> 748.3298667 | X5: =W5*0.86 -> 643.5636853 | Y5: =W5*0.1 -> 74.83298667 | Z5: ='Farm Bill Calculator'!$E$23 -> 133.09 | AA5: ='Farm Bill Calculator'!$E$37 -> 4.35 | AB5: =AA5*Z5 -> 578.9415 | AC5: =IF(X5-AB5>0,X5-AB5,0) -> 64.62218533 | AD5: =MIN(AC5,Y5) -> 64.62218533
B6: AlgerCornAll | C6: 26001 | D6: Michigan | E6: Alger | G6: Corn | H6: Bushel | I6: All | J6: 58.4 | K6: 111 | L6: 58.49 | M6: 183.9 | N6: 110.84 | O6: 79.53 | P6: 170.04 | Q6: =AVERAGE(L6:P6)+S6 -> 120.56 | R6: =AVERAGE(M6:Q6)+S6 -> 132.974 | U6: =(SUM(L6:P6)-MIN(L6:P6)-MAX(L6:P6))/(COUNT(L6:P6)-2) -> 120.1366667 | V6: ='Background Calculations'!$M$54 -> 5.03 | W6: =U6*V6 -> 604.2874333 | X6: =W6*0.86 -> 519.6871927 | Y6: 60.42874333 | Z6: ='Farm Bill Calculator'!$E$23 -> 133.09 | AA6: ='Farm Bill Calculator'!$E$37 -> 4.35 | AB6: =AA6*Z6 -> 578.9415 | AC6: =IF(X6-AB6>0,X6-AB6,0) -> 0 | AD6: =MIN(AC6,Y6) -> 0
B7: AlleganCornIrrigated | C7: 26001 | D7: Michigan | E7: Allegan | G7: Corn | H7: Bushel | I7: Irrigated | J7: 231.01 | K7: 210.21 | L7: 201.81 | M7: 215.59 | N7: 210.51 | O7: 218.27 | P7: 235.93 | Q7: 218.082 | R7: =AVERAGE(M7:Q7)+S7 -> 221.3364 | S7: 1.66 | U7: 214.79 | V7: ='Background Calculations'!$M$54 -> 5.03 | W7: 1080.3937 | X7: 929.138582 | Y7: 108.03937 | Z7: ='Farm Bill Calculator'!$E$23 -> 133.09 | AA7: ='Farm Bill Calculator'!$E$37 -> 4.35 | AB7: 578.9415 | AC7: 350.197082 | AD7: 108.03937
B8: AlleganCornNonirrigated | C8: 26003 | D8: Michigan | E8: Allegan | G8: Corn | H8: Bushel | I8: Nonirrigated | J8: 187.24 | K8: 160.18 | L8: 162.64 | M8: 174.56 | N8: 185.42 | O8: 189.18 | P8: 189.86 | Q8: 181.902 | R8: 185.7544 | S8: 1.57 | U8: 183.0533333 | V8: ='Background Calculations'!$M$54 -> 5.03 | W8: 920.7582667 | X8: 791.8521093 | Y8: 92.07582667 | Z8: ='Farm Bill Calculator'!$E$23 -> 133.09 | AA8: ='Farm Bill Calculator'!$E$37 -> 4.35 | AB8: 578.9415 | AC8: 212.9106093 | AD8: 92.07582667
B9: AlpenaCornAll | C9: 26003 | D9: Michigan | E9: Alpena | G9: Corn | H9: Bushel | I9: All | J9: 150.15 | K9: 116.73 | L9: 124.9 | M9: 169.39 | N9: 191.82 | O9: 152.13 | P9: 158.41 | Q9: 160.85 | R9: 168.04 | S9: 1.52 | U9: 159.9766667 | V9: ='Background Calculations'!$M$54 -> 5.03 | W9: 804.6826333 | X9: 692.0270647 | Y9: 80.46826333 | Z9: ='Farm Bill Calculator'!$E$23 -> 133.09 | AA9: ='Farm Bill Calculator'!$E$37 -> 4.35 | AB9: 578.9415 | AC9: 113.0855647 | AD9: 80.46826333
B10: AntrimCornAll | C10: 26005 | D10: Michigan | E10: Antrim | G10: Corn | H10: Bushel | I10: All | J10: 140.73 | K10: 115.55 | L10: 97.14 | M10: 149.23 | N10: 144.06 | O10: 88.27 | P10: 150.22 | Q10: 126.674 | R10: 132.5808 | S10: 0.89 | U10: 130.1433333 | V10: ='Background Calculations'!$M$54 -> 5.03 | W10: 654.6209667 | X10: 562.9740313 | Y10: 65.46209667 | Z10: ='Farm Bill Calculator'!$E$23 -> 133.09 | AA10: ='Farm Bill Calculator'!$E$37 -> 4.35 | AB10: 578.9415 | AC10: 0 | AD10: 0
B11: ArenacCornAll | C11: 26005 | D11: Michigan | E11: Arenac | G11: Corn | H11: Bushel | I11: All | J11: 175.68 | K11: 174.92 | L11: 145.34 | M11: 155.76 | N11: 195.7 | O11: 163.99 | P11: 183.99 | Q11: 170.596 | R11: 175.6472 | S11: 1.64 | U11: 167.9133333 | V11: ='Background Calculations'!$M$54 -> 5.03 | W11: 844.6040667 | X11: 726.3594973 | Y11: 84.46040667 | Z11: ='Farm Bill Calculator'!$E$23 -> 133.09 | AA11: ='Farm Bill Calculator'!$E$37 -> 4.35 | AB11: 578.9415 | AC11: 147.4179973 | AD11: 84.46040667
B12: BaragaCornAll | C12: 26005 | D12: Michigan | E12: Baraga | G12: Corn | H12: Bushel | I12: All | J12: 84 | K12: 111 | L12: 84 | M12: 140.2 | N12: 110.84 | O12: 84 | P12: 170.04 | Q12: 117.816 | R12: 124.5792 | U12: 111.68 | V12: ='Background Calculations'!$M$54 -> 5.03 | W12: 561.7504 | X12: 483.105344 | Y12: 56.17504 | Z12: ='Farm Bill Calculator'!$E$23 -> 133.09 | AA12: ='Farm Bill Calculator'!$E$37 -> 4.35 | AB12: 578.9415 | AC12: 0 | AD12: 0
B13: BarryCornIrrigated | C13: 26005 | D13: Michigan | E13: Barry | G13: Corn | H13: Bushel | I13: Irrigated | J13: 205.67 | K13: 192.87 | L13: 182.63 | M13: 215.64 | N13: 224.51 | O13: 213.3 | P13: 211.61 | Q13: 210.818 | R13: 216.4556 | S13: 1.28 | U13: 213.5166667 | V13: ='Background Calculations'!$M$54 -> 5.03 | W13: 1073.988833 | X13: 923.6303967 | Y13: 107.3988833 | Z13: ='Farm Bill Calculator'!$E$23 -> 133.09 | AA13: ='Farm Bill Calculator'!$E$37 -> 4.35 | AB13: 578.9415 | AC13: 344.6888967 | AD13: 107.3988833
B14: BarryCornNonirrigated | C14: 26005 | D14: Michigan | E14: Barry | G14: Corn | H14: Bushel | I14: Nonirrigated | J14: 174.37 | K14: 150.64 | L14: 143.56 | M14: 166.73 | N14: 181.76 | O14: 181.72 | P14: 168.36 | Q14: 169.666 | R14: 174.8872 | S14: 1.24 | U14: 172.27 | V14: ='Background Calculations'!$M$54 -> 5.03 | W14: 866.5181 | X14: 745.205566 | Y14: 86.65181 | Z14: ='Farm Bill Calculator'!$E$23 -> 133.09 | AA14: ='Farm Bill Calculator'!$E$37 -> 4.35 | AB14: 578.9415 | AC14: 166.264066 | AD14: 86.65181
B15: BayCornIrrigated | C15: 26007 | D15: Michigan | E15: Bay | G15: Corn | H15: Bushel | I15: Irrigated | J15: 190 | K15: 205.41 | L15: 185.26 | M15: 199.03 | N15: 213.09 | O15: 192.51 | P15: 186.85 | Q15: 197.188 | R15: 199.5736 | S15: 1.84 | U15: 192.7966667 | V15: ='Background Calculations'!$M$54 -> 5.03 | W15: 969.7672333 | X15: 833.9998207 | Y15: 96.97672333 | Z15: ='Farm Bill Calculator'!$E$23 -> 133.09 | AA15: ='Farm Bill Calculator'!$E$37 -> 4.35 | AB15: 578.9415 | AC15: 255.0583207 | AD15: 96.97672333
B16: BayCornNonirrigated | C16: 26007 | D16: Michigan | E16: Bay | G16: Corn | H16: Bushel | I16: Nonirrigated | J16: 179.37 | K16: 193.44 | L16: 169.23 | M16: 171.73 | N16: 207.55 | O16: 186.79 | P16: 195.4 | Q16: 187.97 | R16: 191.718 | S16: 1.83 | U16: 184.64 | V16: ='Background Calculations'!$M$54 -> 5.03 | W16: 928.7392 | X16: 798.715712 | Y16: 92.87392 | Z16: ='Farm Bill Calculator'!$E$23 -> 133.09 | AA16: ='Farm Bill Calculator'!$E$37 -> 4.35 | AB16: 578.9415 | AC16: 219.774212 | AD16: 92.87392
B17: BenzieCornAll | C17: 26007 | D17: Michigan | E17: Benzie | G17: Corn | H17: Bushel | I17: All | J17: 135.26 | K17: 117.95 | L17: 101.39 | M17: 114.3 | N17: 161.6 | O17: 94.72 | P17: 89.62 | Q17: 113.946 | R17: 116.4572 | S17: 1.62 | U17: 103.47 | V17: ='Background Calculations'!$M$54 -> 5.03 | W17: 520.4541 | X17: 447.590526 | Y17: 52.04541 | Z17: ='Farm Bill Calculator'!$E$23 -> 133.09 | AA17: ='Farm Bill Calculator'!$E$37 -> 4.35 | AB17: 578.9415 | AC17: 0 | AD17: 0
B18: BerrienCornIrrigated | C18: 26009 | D18: Michigan | E18: Berrien | G18: Corn | H18: Bushel | I18: Irrigated | J18: 242.81 | K18: 215.38 | L18: 199.39 | M18: 214.56 | N18: 223.94 | O18: 224.27 | P18: 229.77 | Q18: 220.456 | R18: 224.6692 | S18: 2.07 | U18: 220.9233333 | V18: ='Background Calculations'!$M$54 -> 5.03 | W18: 1111.244367 | X18: 955.6701553 | Y18: 111.1244367 | Z18: ='Farm Bill Calculator'!$E$23 -> 133.09 | AA18: ='Farm Bill Calculator'!$E$37 -> 4.35 | AB18: 578.9415 | AC18: 376.7286553 | AD18: 111.1244367
B19: BerrienCornNonirrigated | C19: 26009 | D19: Michigan | E19: Berrien | G19: Corn | H19: Bushel | I19: Nonirrigated | J19: 183.77 | K19: 172.69 | L19: 156.84 | M19: 165.64 | N19: 187.6 | O19: 183.11 | P19: 185.51 | Q19: 177.7 | R19: 181.872 | S19: 1.96 | U19: 178.0866667 | V19: ='Background Calculations'!$M$54 -> 5.03 | W19: 895.7759333 | X19: 770.3673027 | Y19: 89.57759333 | Z19: ='Farm Bill Calculator'!$E$23 -> 133.09 | AA19: ='Farm Bill Calculator'!$E$37 -> 4.35 | AB19: 578.9415 | AC19: 191.4258027 | AD19: 89.57759333
B20: BranchCornIrrigated | C20: 26009 | D20: Michigan | E20: Branch | G20: Corn | H20: Bushel | I20: Irrigated | J20: 204.46 | K20: 192.68 | L20: 202.37 | M20: 207.41 | N20: 184.74 | O20: 224.11 | P20: 213.58 | Q20: 208.192 | R20: 209.3564 | S20: 1.75 | U20: 207.7866667 | V20: ='Background Calculations'!$M$54 -> 5.03 | W20: 1045.166933 | X20: 898.8435627 | Y20: 104.5166933 | Z20: ='Farm Bill Calculator'!$E$23 -> 133.09 | AA20: ='Farm Bill Calculator'!$E$37 -> 4.35 | AB20: 578.9415 | AC20: 319.9020627 | AD20: 104.5166933
B21: BranchCornNonirrigated | C21: 26011 | D21: Michigan | E21: Branch | G21: Corn | H21: Bushel | I21: Nonirrigated | J21: 166.38 | K21: 159.22 | L21: 161.11 | M21: 160.3 | N21: 169.25 | O21: 186.3 | P21: 170.56 | Q21: 171.164 | R21: 173.1748 | S21: 1.66 | U21: 166.9733333 | V21: ='Background Calculations'!$M$54 -> 5.03 | W21: 839.8758667 | X21: 722.2932453 | Y21: 83.98758667 | Z21: ='Farm Bill Calculator'!$E$23 -> 133.09 | AA21: ='Farm Bill Calculator'!$E$37 -> 4.35 | AB21: 578.9415 | AC21: 143.3517453 | AD21: 83.98758667
B22: CalhounCornIrrigated | C22: 26011 | D22: Michigan | E22: Calhoun | G22: Corn | H22: Bushel | I22: Irrigated | J22: 200.6 | K22: 191 | L22: 164.61 | M22: 189.18 | N22: 197.56 | O22: 222.58 | P22: 202.31 | Q22: 196.738 | R22: 203.1636 | S22: 1.49 | U22: 196.35 | V22: ='Background Calculations'!$M$54 -> 5.03 | W22: 987.6405 | X22: 849.37083 | Y22: 98.76405 | Z22: ='Farm Bill Calculator'!$E$23 -> 133.09 | AA22: ='Farm Bill Calculator'!$E$37 -> 4.35 | AB22: 578.9415 | AC22: 270.42933 | AD22: 98.76405
B23: CalhounCornNonirrigated | C23: 26011 | D23: Michigan | E23: Calhoun | G23: Corn | H23: Bushel | I23: Nonirrigated | J23: 145.6 | K23: 149.11 | L23: 138.82 | M23: 138.12 | N23: 169.6 | O23: 180.85 | P23: 161.25 | Q23: 159.138 | R23: 163.2016 | S23: 1.41 | U23: 156.5566667 | V23: ='Background Calculations'!$M$54 -> 5.03 | W23: 787.4800333 | X23: 677.2328287 | Y23: 78.74800333 | Z23: ='Farm Bill Calculator'!$E$23 -> 133.09 | AA23: ='Farm Bill Calculator'!$E$37 -> 4.35 | AB23: 578.9415 | AC23: 98.29132867 | AD23: 78.74800333
B24: CassCornIrrigated | C24: 26013 | D24: Michigan | E24: Cass | G24: Corn | H24: Bushel | I24: Irrigated | J24: 224.01 | K24: 162.45 | L24: 195.43 | M24: 214.3 | N24: 211.9 | O24: 203.99 | P24: 212.8 | Q24: 209.514 | R24: 212.3308 | S24: 1.83 | U24: 209.5633333 | V24: ='Background Calculations'!$M$54 -> 5.03 | W24: 1054.103567 | X24: 906.5290673 | Y24: 105.4103567 | Z24: ='Farm Bill Calculator'!$E$23 -> 133.09 | AA24: ='Farm Bill Calculator'!$E$37 -> 4.35 | AB24: 578.9415 | AC24: 327.5875673 | AD24: 105.4103567
B25: CassCornNonirrigated | C25: 26015 | D25: Michigan | E25: Cass | G25: Corn | H25: Bushel | I25: Nonirrigated | J25: 163.49 | K25: 153.7 | L25: 139.09 | M25: 142.58 | N25: 163.32 | O25: 153.27 | P25: 158.45 | Q25: 152.842 | R25: 155.5924 | S25: 1.5 | U25: 151.4333333 | V25: ='Background Calculations'!$M$54 -> 5.03 | W25: 761.7096667 | X25: 655.0703133 | Y25: 76.17096667 | Z25: ='Farm Bill Calculator'!$E$23 -> 133.09 | AA25: ='Farm Bill Calculator'!$E$37 -> 4.35 | AB25: 578.9415 | AC25: 76.12881333 | AD25: 76.12881333
B26: CharlevoixCornAll | C26: 26015 | D26: Michigan | E26: Charlevoix | G26: Corn | H26: Bushel | I26: All | J26: 122.88 | K26: 118.4 | L26: 124.62 | M26: 148.1 | N26: 154.72 | O26: 116.49 | P26: 122.05 | Q26: 134.616 | R26: 136.6152 | S26: 1.42 | U26: 131.59 | V26: ='Background Calculations'!$M$54 -> 5.03 | W26: 661.8977 | X26: 569.232022 | Y26: 66.18977 | Z26: ='Farm Bill Calculator'!$E$23 -> 133.09 | AA26: ='Farm Bill Calculator'!$E$37 -> 4.35 | AB26: 578.9415 | AC26: 0 | AD26: 0
B27: CheboyganCornAll | C27: 26015 | D27: Michigan | E27: Cheboygan | G27: Corn | H27: Bushel | I27: All | J27: 131 | K27: 117 | L27: 110.3 | M27: 129.9 | N27: 144.49 | O27: 105.32 | P27: 127.73 | Q27: 123.548 | R27: 126.1976 | U27: 122.6433333 | V27: ='Background Calculations'!$M$54 -> 5.03 | W27: 616.8959667 | X27: 530.5305313 | Y27: 61.68959667 | Z27: ='Farm Bill Calculator'!$E$23 -> 133.09 | AA27: ='Farm Bill Calculator'!$E$37 -> 4.35 | AB27: 578.9415 | AC27: 0 | AD27: 0
B28: ChippewaCornAll | C28: 26015 | D28: Michigan | E28: Chippewa | G28: Corn | H28: Bushel | I28: All | J28: 84 | K28: 111 | L28: 93.6 | M28: 182.7 | N28: 110.84 | O28: 93.6 | P28: 170.04 | Q28: 130.156 | R28: 137.4672 | U28: 124.8266667 | V28: ='Background Calculations'!$M$54 -> 5.03 | W28: 627.8781333 | X28: 539.9751947 | Y28: 62.78781333 | Z28: ='Farm Bill Calculator'!$E$23 -> 133.09 | AA28: ='Farm Bill Calculator'!$E$37 -> 4.35 | AB28: 578.9415 | AC28: 0 | AD28: 0
B29: ClareCornAll | C29: 26015 | D29: Michigan | E29: Clare | G29: Corn | H29: Bushel | I29: All | J29: 138.21 | K29: 144.89 | L29: 113.92 | M29: 165.76 | N29: 170.75 | O29: 140.8 | P29: 150.05 | Q29: 149.236 | R29: 156.2992 | S29: 0.98 | U29: 152.2033333 | V29: ='Background Calculations'!$M$54 -> 5.03 | W29: 765.5827667 | X29: 658.4011793 | Y29: 76.55827667 | Z29: ='Farm Bill Calculator'!$E$23 -> 133.09 | AA29: ='Farm Bill Calculator'!$E$37 -> 4.35 | AB29: 578.9415 | AC29: 79.45967933 | AD29: 76.55827667
B30: ClintonCornIrrigated | C30: 26017 | D30: Michigan | E30: Clinton | G30: Corn | H30: Bushel | I30: Irrigated | J30: 196.23 | K30: 205.65 | L30: 201.96 | M30: 204.63 | N30: 229.34 | O30: 217.36 | P30: 209.74 | Q30: 213.786 | R30: 216.1512 | S30: 1.18 | U30: 210.5766667 | V30: ='Background Calculations'!$M$54 -> 5.03 | W30: 1059.200633 | X30: 910.9125447 | Y30: 105.9200633 | Z30: ='Farm Bill Calculator'!$E$23 -> 133.09 | AA30: ='Farm Bill Calculator'!$E$37 -> 4.35 | AB30: 578.9415 | AC30: 331.9710447 | AD30: 105.9200633
B31: ClintonCornNonirrigated | C31: 26017 | D31: Michigan | E31: Clinton | G31: Corn | H31: Bushel | I31: Nonirrigated | J31: 158.06 | K31: 149.46 | L31: 155.85 | M31: 160.35 | N31: 190.77 | O31: 179.77 | P31: 179.04 | Q31: 174.326 | R31: 178.0212 | S31: 1.17 | U31: 173.0533333 | V31: ='Background Calculations'!$M$54 -> 5.03 | W31: 870.4582667 | X31: 748.5941093 | Y31: 87.04582667 | Z31: ='Farm Bill Calculator'!$E$23 -> 133.09 | AA31: ='Farm Bill Calculator'!$E$37 -> 4.35 | AB31: 578.9415 | AC31: 169.6526093 | AD31: 87.04582667
B32: DeltaCornAll | C32: 26017 | D32: Michigan | E32: Delta | G32: Corn | H32: Bushel | I32: All | J32: 61.98 | K32: 159.56 | L32: 65.28 | M32: 193.04 | N32: 100.99 | O32: 68.12 | P32: 166.61 | Q32: 120.448 | R32: 131.4816 | S32: 1.64 | U32: 111.9066667 | V32: ='Background Calculations'!$M$54 -> 5.03 | W32: 562.8905333 | X32: 484.0858587 | Y32: 56.28905333 | Z32: ='Farm Bill Calculator'!$E$23 -> 133.09 | AA32: ='Farm Bill Calculator'!$E$37 -> 4.35 | AB32: 578.9415 | AC32: 0 | AD32: 0
B33: DickinsonCornAll | C33: 26017 | D33: Michigan | E33: Dickinson | G33: Corn | H33: Bushel | I33: All | J33: 80.84 | K33: 157.62 | L33: 61.6 | M33: 180.08 | N33: 104.96 | O33: 116.88 | P33: 173.2 | Q33: 127.344 | R33: 140.4928 | U33: 131.68 | V33: ='Background Calculations'!$M$54 -> 5.03 | W33: 662.3504 | X33: 569.621344 | Y33: 66.23504 | Z33: ='Farm Bill Calculator'!$E$23 -> 133.09 | AA33: ='Farm Bill Calculator'!$E$37 -> 4.35 | AB33: 578.9415 | AC33: 0 | AD33: 0
B34: EatonCornAll | C34: 26017 | D34: Michigan | E34: Eaton | G34: Corn | H34: Bushel | I34: All | J34: 186.83 | K34: 163.37 | L34: 145.76 | M34: 165.14 | N34: 180.56 | O34: 192.86 | P34: 157.95 | Q34: 170.414 | R34: 175.3448 | S34: 1.96 | U34: 167.8833333 | V34: ='Background Calculations'!$M$54 -> 5.03 | W34: 844.4531667 | X34: 726.2297233 | Y34: 84.44531667 | Z34: ='Farm Bill Calculator'!$E$23 -> 133.09 | AA34: ='Farm Bill Calculator'!$E$37 -> 4.35 | AB34: 578.9415 | AC34: 147.2882233 | AD34: 84.44531667
B35: EmmetCornAll | C35: 26019 | D35: Michigan | E35: Emmet | G35: Corn | H35: Bushel | I35: All | J35: 125.34 | K35: 115.45 | L35: 86.44 | M35: 133.6 | N35: 139.59 | O35: 109.12 | P35: 124.94 | Q35: 119.678 | R35: 126.3256 | S35: 0.94 | U35: 122.5533333 | V35: ='Background Calculations'!$M$54 -> 5.03 | W35: 616.4432667 | X35: 530.1412093 | Y35: 61.64432667 | Z35: ='Farm Bill Calculator'!$E$23 -> 133.09 | AA35: ='Farm Bill Calculator'!$E$37 -> 4.35 | AB35: 578.9415 | AC35: 0 | AD35: 0
B36: GeneseeCornAll | C36: 26019 | D36: Michigan | E36: Genesee | G36: Corn | H36: Bushel | I36: All | J36: 178.39 | K36: 170.26 | L36: 148.75 | M36: 158.64 | N36: 178.68 | O36: 149.91 | P36: 160.21 | Q36: 160.988 | R36: 163.4356 | S36: 1.75 | U36: 156.2533333 | V36: ='Background Calculations'!$M$54 -> 5.03 | W36: 785.9542667 | X36: 675.9206693 | Y36: 78.59542667 | Z36: ='Farm Bill Calculator'!$E$23 -> 133.09 | AA36: ='Farm Bill Calculator'!$E$37 -> 4.35 | AB36: 578.9415 | AC36: 96.97916933 | AD36: 78.59542667
B37: GladwinCornAll | C37: 26021 | D37: Michigan | E37: Gladwin | G37: Corn | H37: Bushel | I37: All | J37: 154.34 | K37: 175.27 | L37: 142.53 | M37: 160.4 | N37: 189.78 | O37: 140.9 | P37: 170.95 | Q37: 162.792 | R37: 166.8444 | S37: 1.88 | U37: 157.96 | V37: ='Background Calculations'!$M$54 -> 5.03 | W37: 794.5388 | X37: 683.303368 | Y37: 79.45388 | Z37: ='Farm Bill Calculator'!$E$23 -> 133.09 | AA37: ='Farm Bill Calculator'!$E$37 -> 4.35 | AB37: 578.9415 | AC37: 104.361868 | AD37: 79.45388
B38: Grand TraverseCornAll | C38: 26021 | D38: Michigan | E38: Grand Traverse | G38: Corn | H38: Bushel | I38: All | J38: 133.76 | K38: 89.15 | L38: 108.14 | M38: 109.12 | N38: 155.33 | O38: 144.04 | P38: 124.28 | Q38: 129.262 | R38: 133.4864 | S38: 1.08 | U38: 125.8133333 | V38: ='Background Calculations'!$M$54 -> 5.03 | W38: 632.8410667 | X38: 544.2433173 | Y38: 63.28410667 | Z38: ='Farm Bill Calculator'!$E$23 -> 133.09 | AA38: ='Farm Bill Calculator'!$E$37 -> 4.35 | AB38: 578.9415 | AC38: 0 | AD38: 0
B39: GratiotCornIrrigated | C39: 26021 | D39: Michigan | E39: Gratiot | G39: Corn | H39: Bushel | I39: Irrigated | J39: 186.68 | K39: 196.85 | L39: 187.88 | M39: 204.31 | N39: 201.98 | O39: 207.38 | P39: 214.83 | Q39: 204.696 | R39: 208.0592 | S39: 1.42 | U39: 204.5566667 | V39: ='Background Calculations'!$M$54 -> 5.03 | W39: 1028.920033 | X39: 884.8712287 | Y39: 102.8920033 | Z39: ='Farm Bill Calculator'!$E$23 -> 133.09 | AA39: ='Farm Bill Calculator'!$E$37 -> 4.35 | AB39: 578.9415 | AC39: 305.9297287 | AD39: 102.8920033
B40: GratiotCornNonirrigated | C40: 26021 | D40: Michigan | E40: Gratiot | G40: Corn | H40: Bushel | I40: Nonirrigated | J40: 164.63 | K40: 174.91 | L40: 155.16 | M40: 173.21 | N40: 183.23 | O40: 182.02 | P40: 193.65 | Q40: 178.864 | R40: 183.6048 | S40: 1.41 | U40: 179.4866667 | V40: ='Background Calculations'!$M$54 -> 5.03 | W40: 902.8179333 | X40: 776.4234227 | Y40: 90.28179333 | Z40: ='Farm Bill Calculator'!$E$23 -> 133.09 | AA40: ='Farm Bill Calculator'!$E$37 -> 4.35 | AB40: 578.9415 | AC40: 197.4819227 | AD40: 90.28179333
B41: HillsdaleCornIrrigated | C41: 26021 | D41: Michigan | E41: Hillsdale | G41: Corn | H41: Bushel | I41: Irrigated | J41: 203.81 | K41: 187.67 | L41: 202.17 | M41: 217.28 | N41: 195.46 | O41: 217.72 | P41: 219.05 | Q41: 212.096 | R41: 214.0812 | S41: 1.76 | U41: 212.39 | V41: ='Background Calculations'!$M$54 -> 5.03 | W41: 1068.3217 | X41: 918.756662 | Y41: 106.83217 | Z41: ='Farm Bill Calculator'!$E$23 -> 133.09 | AA41: ='Farm Bill Calculator'!$E$37 -> 4.35 | AB41: 578.9415 | AC41: 339.815162 | AD41: 106.83217
B42: HillsdaleCornNonirrigated | C42: 26023 | D42: Michigan | E42: Hillsdale | G42: Corn | H42: Bushel | I42: Nonirrigated | J42: 172.04 | K42: 164.3 | L42: 167.11 | M42: 158.5 | N42: 184.91 | O42: 186.81 | P42: 175.27 | Q42: 176.24 | R42: 178.066 | S42: 1.72 | U42: 175.7633333 | V42: ='Background Calculations'!$M$54 -> 5.03 | W42: 884.0895667 | X42: 760.3170273 | Y42: 88.40895667 | Z42: ='Farm Bill Calculator'!$E$23 -> 133.09 | AA42: ='Farm Bill Calculator'!$E$37 -> 4.35 | AB42: 578.9415 | AC42: 181.3755273 | AD42: 88.40895667
B43: HoughtonCornAll | C43: 26023 | D43: Michigan | E43: Houghton | G43: Corn | H43: Bushel | I43: All | J43: 58.4 | K43: 111 | L43: 58.49 | M43: 138.6 | N43: 110.84 | O43: 79.53 | P43: 170.04 | Q43: 111.5 | R43: 122.102 | U43: 109.6566667 | V43: ='Background Calculations'!$M$54 -> 5.03 | W43: 551.5730333 | X43: 474.3528087 | Y43: 55.15730333 | Z43: ='Farm Bill Calculator'!$E$23 -> 133.09 | AA43: ='Farm Bill Calculator'!$E$37 -> 4.35 | AB43: 578.9415 | AC43: 0 | AD43: 0
B44: HuronCornIrrigated | C44: 26023 | D44: Michigan | E44: Huron | G44: Corn | H44: Bushel | I44: Irrigated | J44: 208.45 | K44: 207.21 | L44: 209.51 | M44: 220.47 | N44: 219.57 | O44: 203.53 | P44: 203.81 | Q44: 212.918 | R44: 213.5996 | S44: 1.54 | U44: 210.9633333 | V44: ='Background Calculations'!$M$54 -> 5.03 | W44: 1061.145567 | X44: 912.5851873 | Y44: 106.1145567 | Z44: ='Farm Bill Calculator'!$E$23 -> 133.09 | AA44: ='Farm Bill Calculator'!$E$37 -> 4.35 | AB44: 578.9415 | AC44: 333.6436873 | AD44: 106.1145567
B45: HuronCornNonirrigated | C45: 26023 | D45: Michigan | E45: Huron | G45: Corn | H45: Bushel | I45: Nonirrigated | J45: 205.28 | K45: 178.93 | L45: 182.14 | M45: 201.87 | N45: 224.46 | O45: 177.97 | P45: 208.7 | Q45: 200.568 | R45: 204.2536 | S45: 1.54 | U45: 197.57 | V45: ='Background Calculations'!$M$54 -> 5.03 | W45: 993.7771 | X45: 854.648306 | Y45: 99.37771 | Z45: ='Farm Bill Calculator'!$E$23 -> 133.09 | AA45: ='Farm Bill Calculator'!$E$37 -> 4.35 | AB45: 578.9415 | AC45: 275.706806 | AD45: 99.37771
B46: InghamCornAll | C46: 26023 | D46: Michigan | E46: Ingham | G46: Corn | H46: Bushel | I46: All | J46: 172.86 | K46: 159.79 | L46: 164.27 | M46: 166.36 | N46: 199.89 | O46: 175.46 | P46: 176.34 | Q46: 178.324 | R46: 181.1348 | S46: 1.86 | U46: 172.72 | V46: ='Background Calculations'!$M$54 -> 5.03 | W46: 868.7816 | X46: 747.152176 | Y46: 86.87816 | Z46: ='Farm Bill Calculator'!$E$23 -> 133.09 | AA46: ='Farm Bill Calculator'!$E$37 -> 4.35 | AB46: 578.9415 | AC46: 168.210676 | AD46: 86.87816
B47: IoniaCornIrrigated | C47: 26025 | D47: Michigan | E47: Ionia | G47: Corn | H47: Bushel | I47: Irrigated | J47: 209.64 | K47: 218.7 | L47: 198.65 | M47: 222.95 | N47: 241.14 | O47: 229.13 | P47: 225.51 | Q47: 225.116 | R47: 230.4092 | S47: 1.64 | U47: 225.8633333 | V47: ='Background Calculations'!$M$54 -> 5.03 | W47: 1136.092567 | X47: 977.0396073 | Y47: 113.6092567 | Z47: ='Farm Bill Calculator'!$E$23 -> 133.09 | AA47: ='Farm Bill Calculator'!$E$37 -> 4.35 | AB47: 578.9415 | AC47: 398.0981073 | AD47: 113.6092567
B48: IoniaCornNonirrigated | C48: 26025 | D48: Michigan | E48: Ionia | G48: Corn | H48: Bushel | I48: Nonirrigated | J48: 175.61 | K48: 172.12 | L48: 166.24 | M48: 165.67 | N48: 198.59 | O48: 202.32 | P48: 191.95 | Q48: 186.584 | R48: 190.6528 | S48: 1.63 | U48: 185.5933333 | V48: ='Background Calculations'!$M$54 -> 5.03 | W48: 933.5344667 | X48: 802.8396413 | Y48: 93.35344667 | Z48: ='Farm Bill Calculator'!$E$23 -> 133.09 | AA48: ='Farm Bill Calculator'!$E$37 -> 4.35 | AB48: 578.9415 | AC48: 223.8981413 | AD48: 93.35344667
B49: IoscoCornAll | C49: 26025 | D49: Michigan | E49: Iosco | G49: Corn | H49: Bushel | I49: All | J49: 173.96 | K49: 163.73 | L49: 144.27 | M49: 155.35 | N49: 168.98 | O49: 155.77 | P49: 168.28 | Q49: 159.73 | R49: 162.822 | S49: 1.2 | U49: 159.8 | V49: ='Background Calculations'!$M$54 -> 5.03 | W49: 803.794 | X49: 691.26284 | Y49: 80.3794 | Z49: ='Farm Bill Calculator'!$E$23 -> 133.09 | AA49: ='Farm Bill Calculator'!$E$37 -> 4.35 | AB49: 578.9415 | AC49: 112.32134 | AD49: 80.3794
B50: IronCornAll | C50: 26025 | D50: Michigan | E50: Iron | G50: Corn | H50: Bushel | I50: All | J50: 84 | K50: 111 | L50: 84 | M50: 154.83 | N50: 110.84 | O50: 84 | P50: 170.04 | Q50: 120.742 | R50: 128.0904 | U50: 116.5566667 | V50: ='Background Calculations'!$M$54 -> 5.03 | W50: 586.2800333 | X50: 504.2008287 | Y50: 58.62800333 | Z50: ='Farm Bill Calculator'!$E$23 -> 133.09 | AA50: ='Farm Bill Calculator'!$E$37 -> 4.35 | AB50: 578.9415 | AC50: 0 | AD50: 0
B51: IsabellaCornIrrigated | C51: 26025 | D51: Michigan | E51: Isabella | G51: Corn | H51: Bushel | I51: Irrigated | J51: 183.39 | K51: 188.31 | L51: 176.71 | M51: 179.95 | N51: 193.12 | O51: 143.15 | P51: 151.95 | Q51: 170.806 | R51: 169.6252 | S51: 1.83 | U51: 169.5366667 | V51: ='Background Calculations'!$M$54 -> 5.03 | W51: 852.7694333 | X51: 733.3817127 | Y51: 85.27694333 | Z51: ='Farm Bill Calculator'!$E$23 -> 133.09 | AA51: ='Farm Bill Calculator'!$E$37 -> 4.35 | AB51: 578.9415 | AC51: 154.4402127 | AD51: 85.27694333
B52: IsabellaCornNonirrigated | C52: 26027 | D52: Michigan | E52: Isabella | G52: Corn | H52: Bushel | I52: Nonirrigated | J52: 165.05 | K52: 154.58 | L52: 149.09 | M52: 137.55 | N52: 189.45 | O52: 174.51 | P52: 176.62 | Q52: 167.254 | R52: 170.8868 | S52: 1.81 | U52: 166.74 | V52: ='Background Calculations'!$M$54 -> 5.03 | W52: 838.7022 | X52: 721.283892 | Y52: 83.87022 | Z52: ='Farm Bill Calculator'!$E$23 -> 133.09 | AA52: ='Farm Bill Calculator'!$E$37 -> 4.35 | AB52: 578.9415 | AC52: 142.342392 | AD52: 83.87022
B53: JacksonCornIrrigated | C53: 26027 | D53: Michigan | E53: Jackson | G53: Corn | H53: Bushel | I53: Irrigated | J53: 231.79 | K53: 210.8 | L53: 209.28 | M53: 221.03 | N53: 196.25 | O53: 195.94 | P53: 229.31 | Q53: 211.922 | R53: 212.4504 | S53: 1.56 | U53: 208.8533333 | V53: ='Background Calculations'!$M$54 -> 5.03 | W53: 1050.532267 | X53: 903.4577493 | Y53: 105.0532267 | Z53: ='Farm Bill Calculator'!$E$23 -> 133.09 | AA53: ='Farm Bill Calculator'!$E$37 -> 4.35 | AB53: 578.9415 | AC53: 324.5162493 | AD53: 105.0532267
B54: JacksonCornNonirrigated | C54: 26027 | D54: Michigan | E54: Jackson | G54: Corn | H54: Bushel | I54: Nonirrigated | J54: 134.13 | K54: 137.18 | L54: 160.52 | M54: 140.8 | N54: 169.78 | O54: 170.12 | P54: 169.43 | Q54: 163.61 | R54: 164.228 | S54: 1.48 | U54: 166.5766667 | V54: ='Background Calculations'!$M$54 -> 5.03 | W54: 837.8806333 | X54: 720.5773447 | Y54: 83.78806333 | Z54: ='Farm Bill Calculator'!$E$23 -> 133.09 | AA54: ='Farm Bill Calculator'!$E$37 -> 4.35 | AB54: 578.9415 | AC54: 141.6358447 | AD54: 83.78806333
B55: KalamazooCornIrrigated | C55: 26027 | D55: Michigan | E55: Kalamazoo | G55: Corn | H55: Bushel | I55: Irrigated | J55: 220.53 | K55: 161.55 | L55: 196.91 | M55: 220.08 | N55: 225.07 | O55: 218.14 | P55: 213.2 | Q55: 216.31 | R55: 220.19 | S55: 1.63 | U55: 217.14 | V55: ='Background Calculations'!$M$54 -> 5.03 | W55: 1092.2142 | X55: 939.304212 | Y55: 109.22142 | Z55: ='Farm Bill Calculator'!$E$23 -> 133.09 | AA55: ='Farm Bill Calculator'!$E$37 -> 4.35 | AB55: 578.9415 | AC55: 360.362712 | AD55: 109.22142
B56: KalamazooCornNonirrigated | C56: 26027 | D56: Michigan | E56: Kalamazoo | G56: Corn | H56: Bushel | I56: Nonirrigated | J56: 151.81 | K56: 153.4 | L56: 146.44 | M56: 143.38 | N56: 174.45 | O56: 172.71 | P56: 165.46 | Q56: 161.898 | R56: 164.9896 | S56: 1.41 | U56: 161.5366667 | V56: ='Background Calculations'!$M$54 -> 5.03 | W56: 812.5294333 | X56: 698.7753127 | Y56: 81.25294333 | Z56: ='Farm Bill Calculator'!$E$23 -> 133.09 | AA56: ='Farm Bill Calculator'!$E$37 -> 4.35 | AB56: 578.9415 | AC56: 119.8338127 | AD56: 81.25294333
B57: KalkaskaCornAll | C57: 26029 | D57: Michigan | E57: Kalkaska | G57: Corn | H57: Bushel | I57: All | J57: 129 | K57: 111 | L57: 62.4 | M57: 104.2 | N57: 120.23 | O57: 133.69 | P57: 154.05 | Q57: 114.914 | R57: 125.4168 | U57: 119.3733333 | V57: ='Background Calculations'!$M$54 -> 5.03 | W57: 600.4478667 | X57: 516.3851653 | Y57: 60.04478667 | Z57: ='Farm Bill Calculator'!$E$23 -> 133.09 | AA57: ='Farm Bill Calculator'!$E$37 -> 4.35 | AB57: 578.9415 | AC57: 0 | AD57: 0
B58: KentCornIrrigated | C58: 26029 | D58: Michigan | E58: Kent | G58: Corn | H58: Bushel | I58: Irrigated | J58: 205.72 | K58: 170.59 | L58: 185.17 | M58: 203.51 | N58: 205.24 | O58: 217.79 | P58: 221.84 | Q58: 208.45 | R58: 213.106 | S58: 1.74 | U58: 208.8466667 | V58: ='Background Calculations'!$M$54 -> 5.03 | W58: 1050.498733 | X58: 903.4289107 | Y58: 105.0498733 | Z58: ='Farm Bill Calculator'!$E$23 -> 133.09 | AA58: ='Farm Bill Calculator'!$E$37 -> 4.35 | AB58: 578.9415 | AC58: 324.4874107 | AD58: 105.0498733
B59: KentCornNonirrigated | C59: 26029 | D59: Michigan | E59: Kent | G59: Corn | H59: Bushel | I59: Nonirrigated | J59: 158.54 | K59: 151.22 | L59: 154.85 | M59: 172.73 | N59: 189.47 | O59: 181.77 | P59: 177.3 | Q59: 176.924 | R59: 181.3388 | S59: 1.7 | U59: 177.2666667 | V59: ='Background Calculations'!$M$54 -> 5.03 | W59: 891.6513333 | X59: 766.8201467 | Y59: 89.16513333 | Z59: ='Farm Bill Calculator'!$E$23 -> 133.09 | AA59: ='Farm Bill Calculator'!$E$37 -> 4.35 | AB59: 578.9415 | AC59: 187.8786467 | AD59: 89.16513333
B60: LakeCornAll | C60: 26031 | D60: Michigan | E60: Lake | G60: Corn | H60: Bushel | I60: All | J60: 140 | K60: 78.17 | L60: 138.51 | M60: 154.4 | N60: 157.86 | O60: 158.28 | P60: 148.83 | Q60: 151.576 | R60: 154.1892 | U60: 153.6966667 | V60: ='Background Calculations'!$M$54 -> 5.03 | W60: 773.0942333 | X60: 664.8610407 | Y60: 77.30942333 | Z60: ='Farm Bill Calculator'!$E$23 -> 133.09 | AA60: ='Farm Bill Calculator'!$E$37 -> 4.35 | AB60: 578.9415 | AC60: 85.91954067 | AD60: 77.30942333
B61: LapeerCornAll | C61: 26031 | D61: Michigan | E61: Lapeer | G61: Corn | H61: Bushel | I61: All | J61: 194.26 | K61: 184.31 | L61: 155.57 | M61: 181.58 | N61: 193.42 | O61: 161.23 | P61: 164.75 | Q61: 173.4 | R61: 176.966 | S61: 2.09 | U61: 169.1866667 | V61: ='Background Calculations'!$M$54 -> 5.03 | W61: 851.0089333 | X61: 731.8676827 | Y61: 85.10089333 | Z61: ='Farm Bill Calculator'!$E$23 -> 133.09 | AA61: ='Farm Bill Calculator'!$E$37 -> 4.35 | AB61: 578.9415 | AC61: 152.9261827 | AD61: 85.10089333
B62: LeelanauCornAll | C62: 26031 | D62: Michigan | E62: Leelanau | G62: Corn | H62: Bushel | I62: All | J62: 118.07 | K62: 100.34 | L62: 109.46 | M62: 135.26 | N62: 152.05 | O62: 119.16 | P62: 77.94 | Q62: 119.734 | R62: 121.7888 | S62: 0.96 | U62: 121.2933333 | V62: ='Background Calculations'!$M$54 -> 5.03 | W62: 610.1054667 | X62: 524.6907013 | Y62: 61.01054667 | Z62: ='Farm Bill Calculator'!$E$23 -> 133.09 | AA62: ='Farm Bill Calculator'!$E$37 -> 4.35 | AB62: 578.9415 | AC62: 0 | AD62: 0
B63: LenaweeCornIrrigated | C63: 26033 | D63: Michigan | E63: Lenawee | G63: Corn | H63: Bushel | I63: Irrigated | J63: 232.36 | K63: 211.03 | L63: 219.54 | M63: 219.17 | N63: 213.62 | O63: 231.35 | P63: 239.9 | Q63: 226.276 | R63: 227.6232 | S63: 1.56 | U63: 223.3533333 | V63: ='Background Calculations'!$M$54 -> 5.03 | W63: 1123.467267 | X63: 966.1818493 | Y63: 112.3467267 | Z63: ='Farm Bill Calculator'!$E$23 -> 133.09 | AA63: ='Farm Bill Calculator'!$E$37 -> 4.35 | AB63: 578.9415 | AC63: 387.2403493 | AD63: 112.3467267
B64: LenaweeCornNonirrigated | C64: 26033 | D64: Michigan | E64: Lenawee | G64: Corn | H64: Bushel | I64: Nonirrigated | J64: 189.24 | K64: 167.71 | L64: 179.37 | M64: 172.6 | N64: 196.48 | O64: 194.82 | P64: 199.15 | Q64: 190.034 | R64: 192.1668 | S64: 1.55 | U64: 190.2233333 | V64: ='Background Calculations'!$M$54 -> 5.03 | W64: 956.8233667 | X64: 822.8680953 | Y64: 95.68233667 | Z64: ='Farm Bill Calculator'!$E$23 -> 133.09 | AA64: ='Farm Bill Calculator'!$E$37 -> 4.35 | AB64: 578.9415 | AC64: 243.9265953 | AD64: 95.68233667
B65: LivingstonCornAll | C65: 26033 | D65: Michigan | E65: Livingston | G65: Corn | H65: Bushel | I65: All | J65: 167.78 | K65: 139.72 | L65: 172.15 | M65: 173.89 | N65: 184.07 | O65: 164.32 | P65: 190.15 | Q65: 178.766 | R65: 180.0892 | S65: 1.85 | U65: 176.7033333 | V65: ='Background Calculations'!$M$54 -> 5.03 | W65: 888.8177667 | X65: 764.3832793 | Y65: 88.88177667 | Z65: ='Farm Bill Calculator'!$E$23 -> 133.09 | AA65: ='Farm Bill Calculator'!$E$37 -> 4.35 | AB65: 578.9415 | AC65: 185.4417793 | AD65: 88.88177667
B66: LuceCornAll | C66: 26035 | D66: Michigan | E66: Luce | G66: Corn | H66: Bushel | I66: All | J66: 61.6 | K66: 111 | L66: 61.6 | M66: 182.4 | N66: 110.84 | O66: 79.53 | P66: 170.04 | Q66: 120.882 | R66: 132.7384 | U66: 120.1366667 | V66: ='Background Calculations'!$M$54 -> 5.03 | W66: 604.2874333 | X66: 519.6871927 | Y66: 60.42874333 | Z66: ='Farm Bill Calculator'!$E$23 -> 133.09 | AA66: ='Farm Bill Calculator'!$E$37 -> 4.35 | AB66: 578.9415 | AC66: 0 | AD66: 0
B67: MackinacCornAll | C67: 26035 | D67: Michigan | E67: Mackinac | G67: Corn | H67: Bushel | I67: All | J67: 61.6 | K67: 111 | L67: 61.6 | M67: 182.9 | N67: 110.84 | O67: 79.53 | P67: 170.04 | Q67: 120.982 | R67: 132.8584 | U67: 120.1366667 | V67: ='Background Calculations'!$M$54 -> 5.03 | W67: 604.2874333 | X67: 519.6871927 | Y67: 60.42874333 | Z67: ='Farm Bill Calculator'!$E$23 -> 133.09 | AA67: ='Farm Bill Calculator'!$E$37 -> 4.35 | AB67: 578.9415 | AC67: 0 | AD67: 0
B68: MacombCornAll | C68: 26035 | D68: Michigan | E68: Macomb | G68: Corn | H68: Bushel | I68: All | J68: 190.48 | K68: 190.42 | L68: 163.95 | M68: 173.88 | N68: 182.76 | O68: 180.66 | P68: 177.82 | Q68: 177.874 | R68: 180.6588 | S68: 2.06 | U68: 177.4533333 | V68: ='Background Calculations'!$M$54 -> 5.03 | W68: 892.5902667 | X68: 767.6276293 | Y68: 89.25902667 | Z68: ='Farm Bill Calculator'!$E$23 -> 133.09 | AA68: ='Farm Bill Calculator'!$E$37 -> 4.35 | AB68: 578.9415 | AC68: 188.6861293 | AD68: 89.25902667
B69: =E69&G69&I69 -> ManisteeCornAll | C69: 26037 | D69: Michigan | E69: Manistee | G69: Corn | H69: Bushel | I69: All | J69: 127.48 | K69: 148.52 | L69: 111.62 | M69: 123.07 | N69: 158.09 | O69: 164.17 | P69: 133.41 | Q69: =AVERAGE(L69:P69)+S69 -> 139.582 | R69: 145.1744 | S69: 1.51 | U69: 138.19 | V69: ='Background Calculations'!$M$54 -> 5.03 | W69: =U69*V69 -> 695.0957 | X69: =W69*0.86 -> 597.782302 | Y69: =W69*0.1 -> 69.50957 | Z69: ='Farm Bill Calculator'!$E$23 -> 133.09 | AA69: ='Farm Bill Calculator'!$E$37 -> 4.35 | AB69: 578.9415 | AC69: 18.840802 | AD69: 18.840802
B70: MarquetteCornAll | C70: 26037 | D70: Michigan | E70: Marquette | G70: Corn | H70: Bushel | I70: All | J70: 58.4 | K70: 111 | L70: 58.49 | M70: 184 | N70: 110.84 | O70: 79.53 | P70: 170.04 | Q70: 120.58 | R70: =AVERAGE(M70:Q70)+S70 -> 132.998 | U70: =(SUM(L70:P70)-MIN(L70:P70)-MAX(L70:P70))/(COUNT(L70:P70)-2) -> 120.1366667 | V70: ='Background Calculations'!$M$54 -> 5.03 | W70: 604.2874333 | X70: 519.6871927 | Y70: 60.42874333 | Z70: ='Farm Bill Calculator'!$E$23 -> 133.09 | AA70: ='Farm Bill Calculator'!$E$37 -> 4.35 | AB70: =AA70*Z70 -> 578.9415 | AC70: =IF(X70-AB70>0,X70-AB70,0) -> 0 | AD70: =MIN(AC70,Y70) -> 0
B71: MasonCornIrrigated | C71: 26037 | D71: Michigan | E71: Mason | G71: Corn | H71: Bushel | I71: Irrigated | J71: 207.66 | K71: 186.02 | L71: 182.31 | M71: 202.82 | N71: 211.55 | O71: 186.84 | P71: 197.8 | Q71: 198.154 | R71: 201.3228 | S71: 1.89 | U71: 195.82 | V71: ='Background Calculations'!$M$54 -> 5.03 | W71: 984.9746 | X71: 847.078156 | Y71: 98.49746 | Z71: ='Farm Bill Calculator'!$E$23 -> 133.09 | AA71: ='Farm Bill Calculator'!$E$37 -> 4.35 | AB71: 578.9415 | AC71: 268.136656 | AD71: 98.49746
B72: MasonCornNonirrigated | C72: 26037 | D72: Michigan | E72: Mason | G72: Corn | H72: Bushel | I72: Nonirrigated | J72: 178.77 | K72: 139.85 | L72: 145.52 | M72: 165.93 | N72: 175.62 | O72: 169.9 | P72: 145.66 | Q72: 162.386 | R72: 165.7592 | S72: 1.86 | U72: 160.4966667 | V72: ='Background Calculations'!$M$54 -> 5.03 | W72: 807.2982333 | X72: 694.2764807 | Y72: 80.72982333 | Z72: ='Farm Bill Calculator'!$E$23 -> 133.09 | AA72: ='Farm Bill Calculator'!$E$37 -> 4.35 | AB72: 578.9415 | AC72: 115.3349807 | AD72: 80.72982333
B73: MecostaCornIrrigated | C73: 26037 | D73: Michigan | E73: Mecosta | G73: Corn | H73: Bushel | I73: Irrigated | J73: 196.77 | K73: 161.75 | L73: 174.87 | M73: 190.84 | N73: 206.34 | O73: 186.71 | P73: 178.42 | Q73: 189.136 | R73: 191.9892 | S73: 1.7 | U73: 185.3233333 | V73: ='Background Calculations'!$M$54 -> 5.03 | W73: 932.1763667 | X73: 801.6716753 | Y73: 93.21763667 | Z73: ='Farm Bill Calculator'!$E$23 -> 133.09 | AA73: ='Farm Bill Calculator'!$E$37 -> 4.35 | AB73: 578.9415 | AC73: 222.7301753 | AD73: 93.21763667
B74: MecostaCornNonirrigated | C74: 26041 | D74: Michigan | E74: Mecosta | G74: Corn | H74: Bushel | I74: Nonirrigated | J74: 134.12 | K74: 123 | L74: 122.64 | M74: 99.8 | N74: 134.3 | O74: 110.63 | P74: 123.56 | Q74: 119.746 | R74: 119.1672 | S74: 1.56 | U74: 118.9433333 | V74: ='Background Calculations'!$M$54 -> 5.03 | W74: 598.2849667 | X74: 514.5250713 | Y74: 59.82849667 | Z74: ='Farm Bill Calculator'!$E$23 -> 133.09 | AA74: ='Farm Bill Calculator'!$E$37 -> 4.35 | AB74: 578.9415 | AC74: 0 | AD74: 0
B75: MenomineeCornAll | C75: 26041 | D75: Michigan | E75: Menominee | G75: Corn | H75: Bushel | I75: All | J75: 68.2 | K75: 153.99 | L75: 66.26 | M75: 193.04 | N75: 135.18 | O75: 80.52 | P75: 174.62 | Q75: 130.434 | R75: 143.2688 | S75: 0.51 | U75: 130.1066667 | V75: ='Background Calculations'!$M$54 -> 5.03 | W75: 654.4365333 | X75: 562.8154187 | Y75: 65.44365333 | Z75: ='Farm Bill Calculator'!$E$23 -> 133.09 | AA75: ='Farm Bill Calculator'!$E$37 -> 4.35 | AB75: 578.9415 | AC75: 0 | AD75: 0
B76: MidlandCornIrrigated | C76: 26041 | D76: Michigan | E76: Midland | G76: Corn | H76: Bushel | I76: Irrigated | J76: 183.42 | K76: 195.52 | L76: 190.82 | M76: 184.14 | N76: 185.41 | O76: 197.79 | P76: 206.98 | Q76: 194.958 | R76: 195.7856 | S76: 1.93 | U76: 191.34 | V76: ='Background Calculations'!$M$54 -> 5.03 | W76: 962.4402 | X76: 827.698572 | Y76: 96.24402 | Z76: ='Farm Bill Calculator'!$E$23 -> 133.09 | AA76: ='Farm Bill Calculator'!$E$37 -> 4.35 | AB76: 578.9415 | AC76: 248.757072 | AD76: 96.24402
B77: MidlandCornNonirrigated | C77: 26043 | D77: Michigan | E77: Midland | G77: Corn | H77: Bushel | I77: Nonirrigated | J77: 168.03 | K77: 172.6 | L77: 156.47 | M77: 168.62 | N77: 182.11 | O77: 186.36 | P77: 179.73 | Q77: 176.578 | R77: 180.5996 | S77: 1.92 | U77: 176.82 | V77: ='Background Calculations'!$M$54 -> 5.03 | W77: 889.4046 | X77: 764.887956 | Y77: 88.94046 | Z77: ='Farm Bill Calculator'!$E$23 -> 133.09 | AA77: ='Farm Bill Calculator'!$E$37 -> 4.35 | AB77: 578.9415 | AC77: 185.946456 | AD77: 88.94046
B78: MissaukeeCornIrrigated | C78: 26045 | D78: Michigan | E78: Missaukee | G78: Corn | H78: Bushel | I78: Irrigated | J78: 200.94 | K78: 197.53 | L78: 185.76 | M78: 215.41 | N78: 232.41 | O78: 220.3 | P78: 224.08 | Q78: 216.272 | R78: 222.3744 | S78: 0.68 | U78: 219.93 | V78: ='Background Calculations'!$M$54 -> 5.03 | W78: 1106.2479 | X78: 951.373194 | Y78: 110.62479 | Z78: ='Farm Bill Calculator'!$E$23 -> 133.09 | AA78: ='Farm Bill Calculator'!$E$37 -> 4.35 | AB78: 578.9415 | AC78: 372.431694 | AD78: 110.62479
B79: MissaukeeCornNonirrigated | C79: 26045 | D79: Michigan | E79: Missaukee | G79: Corn | H79: Bushel | I79: Nonirrigated | J79: 157.37 | K79: 126.34 | L79: 148.76 | M79: 152.05 | N79: 205.54 | O79: 192.39 | P79: 197.2 | Q79: 179.868 | R79: 186.0896 | S79: 0.68 | U79: 180.5466667 | V79: ='Background Calculations'!$M$54 -> 5.03 | W79: 908.1497333 | X79: 781.0087707 | Y79: 90.81497333 | Z79: ='Farm Bill Calculator'!$E$23 -> 133.09 | AA79: ='Farm Bill Calculator'!$E$37 -> 4.35 | AB79: 578.9415 | AC79: 202.0672707 | AD79: 90.81497333
B80: MonroeCornIrrigated | C80: 26045 | D80: Michigan | E80: Monroe | G80: Corn | H80: Bushel | I80: Irrigated | J80: 229.4 | K80: 179.23 | L80: 228.77 | M80: 229.31 | N80: 222.69 | O80: 243.47 | P80: 236.58 | Q80: 234.054 | R80: 235.1108 | S80: 1.89 | U80: 231.5533333 | V80: ='Background Calculations'!$M$54 -> 5.03 | W80: 1164.713267 | X80: 1001.653409 | Y80: 116.4713267 | Z80: ='Farm Bill Calculator'!$E$23 -> 133.09 | AA80: ='Farm Bill Calculator'!$E$37 -> 4.35 | AB80: 578.9415 | AC80: 422.7119093 | AD80: 116.4713267
B81: MonroeCornNonirrigated | C81: 26045 | D81: Michigan | E81: Monroe | G81: Corn | H81: Bushel | I81: Nonirrigated | J81: 202.6 | K81: 180.64 | L81: 193.01 | M81: 153.22 | N81: 209.54 | O81: 178.36 | P81: 209.41 | Q81: 190.578 | R81: 190.0916 | S81: 1.87 | U81: 193.5933333 | V81: ='Background Calculations'!$M$54 -> 5.03 | W81: 973.7744667 | X81: 837.4460413 | Y81: 97.37744667 | Z81: ='Farm Bill Calculator'!$E$23 -> 133.09 | AA81: ='Farm Bill Calculator'!$E$37 -> 4.35 | AB81: 578.9415 | AC81: 258.5045413 | AD81: 97.37744667
B82: MontcalmCornIrrigated | C82: 26047 | D82: Michigan | E82: Montcalm | G82: Corn | H82: Bushel | I82: Irrigated | J82: 195.12 | K82: 201.03 | L82: 187.87 | M82: 199.99 | N82: 204.63 | O82: 208.49 | P82: 200.77 | Q82: 202.06 | R82: 204.898 | S82: 1.71 | U82: 201.7966667 | V82: ='Background Calculations'!$M$54 -> 5.03 | W82: 1015.037233 | X82: 872.9320207 | Y82: 101.5037233 | Z82: ='Farm Bill Calculator'!$E$23 -> 133.09 | AA82: ='Farm Bill Calculator'!$E$37 -> 4.35 | AB82: 578.9415 | AC82: 293.9905207 | AD82: 101.5037233
B83: MontcalmCornNonirrigated | C83: 26047 | D83: Michigan | E83: Montcalm | G83: Corn | H83: Bushel | I83: Nonirrigated | J83: 141.8 | K83: 138.97 | L83: 131.82 | M83: 136.68 | N83: 170.96 | O83: 160.73 | P83: 159.57 | Q83: 153.422 | R83: 157.7424 | S83: 1.47 | U83: 152.3266667 | V83: ='Background Calculations'!$M$54 -> 5.03 | W83: 766.2031333 | X83: 658.9346947 | Y83: 76.62031333 | Z83: ='Farm Bill Calculator'!$E$23 -> 133.09 | AA83: ='Farm Bill Calculator'!$E$37 -> 4.35 | AB83: 578.9415 | AC83: 79.99319467 | AD83: 76.62031333
B84: MontmorencyCornAll | C84: 26047 | D84: Michigan | E84: Montmorency | G84: Corn | H84: Bushel | I84: All | J84: 150.02 | K84: 89.15 | L84: 125.38 | M84: 148.25 | N84: 173.67 | O84: 130.98 | P84: 143.29 | Q84: 146.044 | R84: 150.1768 | S84: 1.73 | U84: 140.84 | V84: ='Background Calculations'!$M$54 -> 5.03 | W84: 708.4252 | X84: 609.245672 | Y84: 70.84252 | Z84: ='Farm Bill Calculator'!$E$23 -> 133.09 | AA84: ='Farm Bill Calculator'!$E$37 -> 4.35 | AB84: 578.9415 | AC84: 30.304172 | AD84: 30.304172
B85: MuskegonCornIrrigated | C85: 26049 | D85: Michigan | E85: Muskegon | G85: Corn | H85: Bushel | I85: Irrigated | J85: 174.43 | K85: 140.75 | L85: 128.69 | M85: 167.42 | N85: 209.64 | O85: 196.81 | P85: 204.44 | Q85: 182.7 | R85: 193.502 | S85: 1.3 | U85: 189.5566667 | V85: ='Background Calculations'!$M$54 -> 5.03 | W85: 953.4700333 | X85: 819.9842287 | Y85: 95.34700333 | Z85: ='Farm Bill Calculator'!$E$23 -> 133.09 | AA85: ='Farm Bill Calculator'!$E$37 -> 4.35 | AB85: 578.9415 | AC85: 241.0427287 | AD85: 95.34700333
B86: MuskegonCornNonirrigated | C86: 26049 | D86: Michigan | E86: Muskegon | G86: Corn | H86: Bushel | I86: Nonirrigated | J86: 146.48 | K86: 130.71 | L86: 116.01 | M86: 156 | N86: 188.15 | O86: 180.05 | P86: 170.97 | Q86: 163.506 | R86: 173.0052 | S86: 1.27 | U86: 169.0066667 | V86: ='Background Calculations'!$M$54 -> 5.03 | W86: 850.1035333 | X86: 731.0890387 | Y86: 85.01035333 | Z86: ='Farm Bill Calculator'!$E$23 -> 133.09 | AA86: ='Farm Bill Calculator'!$E$37 -> 4.35 | AB86: 578.9415 | AC86: 152.1475387 | AD86: 85.01035333
B87: NewaygoCornIrrigated | C87: 26049 | D87: Michigan | E87: Newaygo | G87: Corn | H87: Bushel | I87: Irrigated | J87: 191.67 | K87: 181.2 | L87: 161.32 | M87: 186.04 | N87: 196.11 | O87: 192.88 | P87: 162.04 | Q87: 180.588 | R87: 184.4416 | S87: 0.91 | U87: 180.32 | V87: ='Background Calculations'!$M$54 -> 5.03 | W87: 907.0096 | X87: 780.028256 | Y87: 90.70096 | Z87: ='Farm Bill Calculator'!$E$23 -> 133.09 | AA87: ='Farm Bill Calculator'!$E$37 -> 4.35 | AB87: 578.9415 | AC87: 201.086756 | AD87: 90.70096
B88: NewaygoCornNonirrigated | C88: 26051 | D88: Michigan | E88: Newaygo | G88: Corn | H88: Bushel | I88: Nonirrigated | J88: 139.69 | K88: 104.84 | L88: 128.22 | M88: 160.41 | N88: 182.03 | O88: 165.18 | P88: 164.82 | Q88: 161.022 | R88: 167.5824 | S88: 0.89 | U88: 163.47 | V88: ='Background Calculations'!$M$54 -> 5.03 | W88: 822.2541 | X88: 707.138526 | Y88: 82.22541 | Z88: ='Farm Bill Calculator'!$E$23 -> 133.09 | AA88: ='Farm Bill Calculator'!$E$37 -> 4.35 | AB88: 578.9415 | AC88: 128.197026 | AD88: 82.22541
B89: OaklandCornAll | C89: 26051 | D89: Michigan | E89: Oakland | G89: Corn | H89: Bushel | I89: All | J89: 153.27 | K89: 127.55 | L89: 131.71 | M89: 138.33 | N89: 179.16 | O89: 125.4 | P89: 123.66 | Q89: 141.142 | R89: 143.0284 | S89: 1.49 | U89: 131.8133333 | V89: ='Background Calculations'!$M$54 -> 5.03 | W89: 663.0210667 | X89: 570.1981173 | Y89: 66.30210667 | Z89: ='Farm Bill Calculator'!$E$23 -> 133.09 | AA89: ='Farm Bill Calculator'!$E$37 -> 4.35 | AB89: 578.9415 | AC89: 0 | AD89: 0
B90: OceanaCornIrrigated | C90: 26051 | D90: Michigan | E90: Oceana | G90: Corn | H90: Bushel | I90: Irrigated | J90: 173.51 | K90: 150.03 | L90: 150.01 | M90: 181.12 | N90: 190.44 | O90: 164.05 | P90: 157.13 | Q90: 170.67 | R90: 174.802 | S90: 2.12 | U90: 167.4333333 | V90: ='Background Calculations'!$M$54 -> 5.03 | W90: 842.1896667 | X90: 724.2831133 | Y90: 84.21896667 | Z90: ='Farm Bill Calculator'!$E$23 -> 133.09 | AA90: ='Farm Bill Calculator'!$E$37 -> 4.35 | AB90: 578.9415 | AC90: 145.3416133 | AD90: 84.21896667
B91: OceanaCornNonirrigated | C91: 26055 | D91: Michigan | E91: Oceana | G91: Corn | H91: Bushel | I91: Nonirrigated | J91: 146.85 | K91: 105.32 | L91: 122.57 | M91: 131.33 | N91: 166.03 | O91: 150.08 | P91: 137.44 | Q91: 143.52 | R91: 147.71 | S91: 2.03 | U91: 139.6166667 | V91: ='Background Calculations'!$M$54 -> 5.03 | W91: 702.2718333 | X91: 603.9537767 | Y91: 70.22718333 | Z91: ='Farm Bill Calculator'!$E$23 -> 133.09 | AA91: ='Farm Bill Calculator'!$E$37 -> 4.35 | AB91: 578.9415 | AC91: 25.01227667 | AD91: 25.01227667
B92: OgemawCornAll | C92: 26055 | D92: Michigan | E92: Ogemaw | G92: Corn | H92: Bushel | I92: All | J92: 160.12 | K92: 171.93 | L92: 156.21 | M92: 156.57 | N92: 199.87 | O92: 162.39 | P92: 174.83 | Q92: 171.844 | R92: 174.9708 | S92: 1.87 | U92: 164.5966667 | V92: ='Background Calculations'!$M$54 -> 5.03 | W92: 827.9212333 | X92: 712.0122607 | Y92: 82.79212333 | Z92: ='Farm Bill Calculator'!$E$23 -> 133.09 | AA92: ='Farm Bill Calculator'!$E$37 -> 4.35 | AB92: 578.9415 | AC92: 133.0707607 | AD92: 82.79212333
B93: OntonagonCornAll | C93: 26055 | D93: Michigan | E93: Ontonagon | G93: Corn | H93: Bushel | I93: All | J93: 58.4 | K93: 111 | L93: 58.49 | M93: 141.9 | N93: 110.84 | O93: 79.53 | P93: 170.04 | Q93: 112.16 | R93: 122.894 | U93: 110.7566667 | V93: ='Background Calculations'!$M$54 -> 5.03 | W93: 557.1060333 | X93: 479.1111887 | Y93: 55.71060333 | Z93: ='Farm Bill Calculator'!$E$23 -> 133.09 | AA93: ='Farm Bill Calculator'!$E$37 -> 4.35 | AB93: 578.9415 | AC93: 0 | AD93: 0
B94: OsceolaCornAll | C94: 26057 | D94: Michigan | E94: Osceola | G94: Corn | H94: Bushel | I94: All | J94: 166.85 | K94: 120.49 | L94: 143.86 | M94: 164.08 | N94: 202.72 | O94: 170.81 | P94: 174.33 | Q94: 172.14 | R94: 177.796 | S94: 0.98 | U94: 169.74 | V94: ='Background Calculations'!$M$54 -> 5.03 | W94: 853.7922 | X94: 734.261292 | Y94: 85.37922 | Z94: ='Farm Bill Calculator'!$E$23 -> 133.09 | AA94: ='Farm Bill Calculator'!$E$37 -> 4.35 | AB94: 578.9415 | AC94: 155.319792 | AD94: 85.37922
B95: OscodaCornAll | C95: 26057 | D95: Michigan | E95: Oscoda | G95: Corn | H95: Bushel | I95: All | J95: 131 | K95: 117 | L95: 110.3 | M95: 147.5 | N95: 188.78 | O95: 152.14 | P95: 153.47 | Q95: 150.438 | R95: 158.4656 | U95: 151.0366667 | V95: ='Background Calculations'!$M$54 -> 5.03 | W95: 759.7144333 | X95: 653.3544127 | Y95: 75.97144333 | Z95: ='Farm Bill Calculator'!$E$23 -> 133.09 | AA95: ='Farm Bill Calculator'!$E$37 -> 4.35 | AB95: 578.9415 | AC95: 74.41291267 | AD95: 74.41291267
B96: OtsegoCornAll | C96: 26057 | D96: Michigan | E96: Otsego | G96: Corn | H96: Bushel | I96: All | J96: 140.49 | K96: 100.88 | L96: 137.47 | M96: 155.4 | N96: 148.51 | O96: 83.89 | P96: 152.02 | Q96: 137.158 | R96: 137.0956 | S96: 1.7 | U96: 146 | V96: ='Background Calculations'!$M$54 -> 5.03 | W96: 734.38 | X96: 631.5668 | Y96: 73.438 | Z96: ='Farm Bill Calculator'!$E$23 -> 133.09 | AA96: ='Farm Bill Calculator'!$E$37 -> 4.35 | AB96: 578.9415 | AC96: 52.6253 | AD96: 52.6253
B97: OttawaCornIrrigated | C97: 26057 | D97: Michigan | E97: Ottawa | G97: Corn | H97: Bushel | I97: Irrigated | J97: 193.4 | K97: 192.84 | L97: 173.81 | M97: 202.79 | N97: 213.08 | O97: 204.08 | P97: 225.14 | Q97: 205.1 | R97: 211.358 | S97: 1.32 | U97: 206.65 | V97: ='Background Calculations'!$M$54 -> 5.03 | W97: 1039.4495 | X97: 893.92657 | Y97: 103.94495 | Z97: ='Farm Bill Calculator'!$E$23 -> 133.09 | AA97: ='Farm Bill Calculator'!$E$37 -> 4.35 | AB97: 578.9415 | AC97: 314.98507 | AD97: 103.94495
B98: OttawaCornNonirrigated | C98: 26057 | D98: Michigan | E98: Ottawa | G98: Corn | H98: Bushel | I98: Nonirrigated | J98: 172.94 | K98: 145.98 | L98: 144.56 | M98: 142.95 | N98: 188.97 | O98: 186.5 | P98: 193.51 | Q98: 172.588 | R98: 178.1936 | S98: 1.29 | U98: 173.3433333 | V98: ='Background Calculations'!$M$54 -> 5.03 | W98: 871.9169667 | X98: 749.8485913 | Y98: 87.19169667 | Z98: ='Farm Bill Calculator'!$E$23 -> 133.09 | AA98: ='Farm Bill Calculator'!$E$37 -> 4.35 | AB98: 578.9415 | AC98: 170.9070913 | AD98: 87.19169667
B99: Presque IsleCornAll | C99: 26059 | D99: Michigan | E99: Presque Isle | G99: Corn | H99: Bushel | I99: All | J99: 134.13 | K99: 93.79 | L99: 98.85 | M99: 127.48 | N99: 160.16 | O99: 131.37 | P99: 112.32 | Q99: 128.236 | R99: 134.1132 | S99: 2.2 | U99: 123.7233333 | V99: ='Background Calculations'!$M$54 -> 5.03 | W99: 622.3283667 | X99: 535.2023953 | Y99: 62.23283667 | Z99: ='Farm Bill Calculator'!$E$23 -> 133.09 | AA99: ='Farm Bill Calculator'!$E$37 -> 4.35 | AB99: 578.9415 | AC99: 0 | AD99: 0
B100: RoscommonCornAll | C100: 26059 | D100: Michigan | E100: Roscommon | G100: Corn | H100: Bushel | I100: All | J100: 131 | K100: 117 | L100: 127.65 | M100: 132.87 | N100: 188.78 | O100: 156.28 | P100: 171.84 | Q100: 155.484 | R100: 161.0508 | U100: 153.6633333 | V100: ='Background Calculations'!$M$54 -> 5.03 | W100: 772.9265667 | X100: 664.7168473 | Y100: 77.29265667 | Z100: ='Farm Bill Calculator'!$E$23 -> 133.09 | AA100: ='Farm Bill Calculator'!$E$37 -> 4.35 | AB100: 578.9415 | AC100: 85.77534733 | AD100: 77.29265667
B101: SaginawCornAll | C101: 26059 | D101: Michigan | E101: Saginaw | G101: Corn | H101: Bushel | I101: All | J101: 177.97 | K101: 189.44 | L101: 158.18 | M101: 168.31 | N101: 179.26 | O101: 176.72 | P101: 179.19 | Q101: 174.202 | R101: 177.4064 | S101: 1.87 | U101: 174.74 | V101: ='Background Calculations'!$M$54 -> 5.03 | W101: 878.9422 | X101: 755.890292 | Y101: 87.89422 | Z101: ='Farm Bill Calculator'!$E$23 -> 133.09 | AA101: ='Farm Bill Calculator'!$E$37 -> 4.35 | AB101: 578.9415 | AC101: 176.948792 | AD101: 87.89422
B102: SanilacCornAll | C102: 26059 | D102: Michigan | E102: Sanilac | G102: Corn | H102: Bushel | I102: All | J102: 205.75 | K102: 192.48 | L102: 164.96 | M102: 180.46 | N102: 172.37 | O102: 155.57 | P102: 168.62 | Q102: 170.616 | R102: 171.7472 | S102: 2.22 | U102: 168.65 | V102: ='Background Calculations'!$M$54 -> 5.03 | W102: 848.3095 | X102: 729.54617 | Y102: 84.83095 | Z102: ='Farm Bill Calculator'!$E$23 -> 133.09 | AA102: ='Farm Bill Calculator'!$E$37 -> 4.35 | AB102: 578.9415 | AC102: 150.60467 | AD102: 84.83095
B103: SchoolcraftCornAll | C103: 26059 | D103: Michigan | E103: Schoolcraft | G103: Corn | H103: Bushel | I103: All | J103: 61.6 | K103: 111 | L103: 154 | M103: 192.2 | N103: 201.38 | O103: 171.88 | P103: 142.08 | Q103: 173.608 | R103: 177.5296 | S103: 1.3 | U103: 172.6933333 | V103: ='Background Calculations'!$M$54 -> 5.03 | W103: 868.6474667 | X103: 747.0368213 | Y103: 86.86474667 | Z103: ='Farm Bill Calculator'!$E$23 -> 133.09 | AA103: ='Farm Bill Calculator'!$E$37 -> 4.35 | AB103: 578.9415 | AC103: 168.0953213 | AD103: 86.86474667
B104: ShiawasseeCornAll | C104: 26061 | D104: Michigan | E104: Shiawassee | G104: Corn | H104: Bushel | I104: All | J104: 165.59 | K104: 160.92 | L104: 129.06 | M104: 125.4 | N104: 165.35 | O104: 144.81 | P104: 120.06 | Q104: 137.996 | R104: 139.7832 | S104: 1.06 | U104: 133.09 | V104: ='Background Calculations'!$M$54 -> 5.03 | W104: 669.4427 | X104: 575.720722 | Y104: 66.94427 | Z104: ='Farm Bill Calculator'!$E$23 -> 133.09 | AA104: ='Farm Bill Calculator'!$E$37 -> 4.35 | AB104: 578.9415 | AC104: 0 | AD104: 0
B105: St. ClairCornAll | C105: 26063 | D105: Michigan | E105: St. Clair | G105: Corn | H105: Bushel | I105: All | J105: 178.18 | K105: 188.82 | L105: 185.17 | M105: 203.13 | N105: 224.4 | O105: 193.72 | P105: 195.16 | Q105: 202.326 | R105: 205.7572 | S105: 2.01 | U105: 197.3366667 | V105: ='Background Calculations'!$M$54 -> 5.03 | W105: 992.6034333 | X105: 853.6389527 | Y105: 99.26034333 | Z105: ='Farm Bill Calculator'!$E$23 -> 133.09 | AA105: ='Farm Bill Calculator'!$E$37 -> 4.35 | AB105: 578.9415 | AC105: 274.6974527 | AD105: 99.26034333
B106: St. JosephCornIrrigated | C106: 26063 | D106: Michigan | E106: St. Joseph | G106: Corn | H106: Bushel | I106: Irrigated | J106: 151.1 | K106: 150.25 | L106: 61.6 | M106: 182.9 | N106: 110.84 | O106: 79.53 | P106: 170.04 | Q106: 120.982 | R106: 132.8584 | U106: 120.1366667 | V106: ='Background Calculations'!$M$54 -> 5.03 | W106: 604.2874333 | X106: 519.6871927 | Y106: 60.42874333 | Z106: ='Farm Bill Calculator'!$E$23 -> 133.09 | AA106: ='Farm Bill Calculator'!$E$37 -> 4.35 | AB106: 578.9415 | AC106: 0 | AD106: 0
B107: St. JosephCornNonirrigated | C107: 26063 | D107: Michigan | E107: St. Joseph | G107: Corn | H107: Bushel | I107: Nonirrigated | J107: 107.72 | K107: 158.6 | L107: 162.42 | M107: 179.33 | N107: 179.94 | O107: 165.59 | P107: 176.43 | Q107: 174.522 | R107: 176.9424 | S107: 1.78 | U107: 173.7833333 | V107: ='Background Calculations'!$M$54 -> 5.03 | W107: 874.1301667 | X107: 751.7519433 | Y107: 87.41301667 | Z107: ='Farm Bill Calculator'!$E$23 -> 133.09 | AA107: ='Farm Bill Calculator'!$E$37 -> 4.35 | AB107: 578.9415 | AC107: 172.8104433 | AD107: 87.41301667
B108: TuscolaCornIrrigated | C108: 26063 | D108: Michigan | E108: Tuscola | G108: Corn | H108: Bushel | I108: Irrigated | J108: 193.22 | K108: 218.46 | L108: 190.58 | M108: 202.62 | N108: 229.88 | O108: 199.83 | P108: 205.39 | Q108: 207.62 | R108: 211.028 | S108: 1.96 | U108: 202.6133333 | V108: ='Background Calculations'!$M$54 -> 5.03 | W108: 1019.145067 | X108: 876.4647573 | Y108: 101.9145067 | Z108: ='Farm Bill Calculator'!$E$23 -> 133.09 | AA108: ='Farm Bill Calculator'!$E$37 -> 4.35 | AB108: 578.9415 | AC108: 297.5232573 | AD108: 101.9145067
B109: TuscolaCornNonirrigated | C109: 26063 | D109: Michigan | E109: Tuscola | G109: Corn | H109: Bushel | I109: Nonirrigated | J109: 182.25 | K109: 180.55 | L109: 176.08 | M109: 183.61 | N109: 214.48 | O109: 184.3 | P109: 190.16 | Q109: 191.676 | R109: 194.7952 | S109: 1.95 | U109: 186.0233333 | V109: ='Background Calculations'!$M$54 -> 5.03 | W109: 935.6973667 | X109: 804.6997353 | Y109: 93.56973667 | Z109: ='Farm Bill Calculator'!$E$23 -> 133.09 | AA109: ='Farm Bill Calculator'!$E$37 -> 4.35 | AB109: 578.9415 | AC109: 225.7582353 | AD109: 93.56973667
B110: Van BurenCornIrrigated | C110: 26065 | D110: Michigan | E110: Van Buren | G110: Corn | H110: Bushel | I110: Irrigated | J110: 213.5 | K110: 215.55 | L110: 202.24 | M110: 200.98 | N110: 196.25 | O110: 211.44 | P110: 225.41 | Q110: 209.224 | R110: 210.6208 | S110: 1.96 | U110: 204.8866667 | V110: ='Background Calculations'!$M$54 -> 5.03 | W110: 1030.579933 | X110: 886.2987427 | Y110: 103.0579933 | Z110: ='Farm Bill Calculator'!$E$23 -> 133.09 | AA110: ='Farm Bill Calculator'!$E$37 -> 4.35 | AB110: 578.9415 | AC110: 307.3572427 | AD110: 103.0579933
B111: Van BurenCornNonirrigated | C111: 26065 | D111: Michigan | E111: Van Buren | G111: Corn | H111: Bushel | I111: Nonirrigated | J111: 166.57 | K111: 149.55 | L111: 132.13 | M111: 134.12 | N111: 154.7 | O111: 153.53 | P111: 170.07 | Q111: 150.69 | R111: 154.402 | S111: 1.78 | U111: 147.45 | V111: ='Background Calculations'!$M$54 -> 5.03 | W111: 741.6735 | X111: 637.83921 | Y111: 74.16735 | Z111: ='Farm Bill Calculator'!$E$23 -> 133.09 | AA111: ='Farm Bill Calculator'!$E$37 -> 4.35 | AB111: 578.9415 | AC111: 58.89771 | AD111: 58.89771
B112: WashtenawCornIrrigated | C112: 26065 | D112: Michigan | E112: Washtenaw | G112: Corn | H112: Bushel | I112: Irrigated | J112: 229.9 | K112: 217.81 | L112: 229.21 | M112: 182.19 | N112: 228.22 | O112: 223.58 | P112: 194.45 | Q112: 213.33 | R112: 210.154 | S112: 1.8 | U112: 215.4166667 | V112: ='Background Calculations'!$M$54 -> 5.03 | W112: 1083.545833 | X112: 931.8494167 | Y112: 108.3545833 | Z112: ='Farm Bill Calculator'!$E$23 -> 133.09 | AA112: ='Farm Bill Calculator'!$E$37 -> 4.35 | AB112: 578.9415 | AC112: 352.9079167 | AD112: 108.3545833
B113: WashtenawCornNonirrigated | C113: 26065 | D113: Michigan | E113: Washtenaw | G113: Corn | H113: Bushel | I113: Nonirrigated | J113: 158.84 | K113: 140.28 | L113: 161.17 | M113: 155.05 | N113: 181.94 | O113: 156.9 | P113: 176.58 | Q113: 168.088 | R113: 169.4716 | S113: 1.76 | U113: 164.8833333 | V113: ='Background Calculations'!$M$54 -> 5.03 | W113: 829.3631667 | X113: 713.2523233 | Y113: 82.93631667 | Z113: ='Farm Bill Calculator'!$E$23 -> 133.09 | AA113: ='Farm Bill Calculator'!$E$37 -> 4.35 | AB113: 578.9415 | AC113: 134.3108233 | AD113: 82.93631667
B114: WayneCornAll | C114: 26067 | D114: Michigan | E114: Wayne | G114: Corn | H114: Bushel | I114: All | J114: 144.68 | K114: 123.07 | L114: 135.58 | M114: 98.76 | N114: 116.77 | O114: 89.19 | P114: 151.43 | Q114: 119.276 | R114: 116.0152 | S114: 0.93 | U114: 117.0366667 | V114: ='Background Calculations'!$M$54 -> 5.03 | W114: 588.6944333 | X114: 506.2772127 | Y114: 58.86944333 | Z114: ='Farm Bill Calculator'!$E$23 -> 133.09 | AA114: ='Farm Bill Calculator'!$E$37 -> 4.35 | AB114: 578.9415 | AC114: 0 | AD114: 0
B115: WexfordCornIrrigated | C115: 26067 | D115: Michigan | E115: Wexford | G115: Corn | H115: Bushel | I115: Irrigated | J115: 190.14 | K115: 115.95 | L115: 134.74 | M115: 184.55 | N115: 199.25 | O115: 191.97 | P115: 168.11 | Q115: 176.914 | R115: 185.3488 | S115: 1.19 | U115: 181.5433333 | V115: ='Background Calculations'!$M$54 -> 5.03 | W115: 913.1629667 | X115: 785.3201513 | Y115: 91.31629667 | Z115: ='Farm Bill Calculator'!$E$23 -> 133.09 | AA115: ='Farm Bill Calculator'!$E$37 -> 4.35 | AB115: 578.9415 | AC115: 206.3786513 | AD115: 91.31629667
B116: WexfordCornNonirrigated | C116: 26067 | D116: Michigan | E116: Wexford | G116: Corn | H116: Bushel | I116: Nonirrigated | J116: 163.42 | K116: 158.95 | L116: 127.11 | M116: 128.65 | N116: 162.92 | O116: 162.42 | P116: 145.66 | Q116: 146.542 | R116: 150.4284 | S116: 1.19 | U116: 145.5766667 | V116: ='Background Calculations'!$M$54 -> 5.03 | W116: 732.2506333 | X116: 629.7355447 | Y116: 73.22506333 | Z116: ='Farm Bill Calculator'!$E$23 -> 133.09 | AA116: ='Farm Bill Calculator'!$E$37 -> 4.35 | AB116: 578.9415 | AC116: 50.79404467 | AD116: 50.79404467
B117: AlconaSoybeansAll | C117: 26067 | D117: Michigan | E117: Alcona | G117: Soybeans | H117: Bushel | I117: All | J117: 37 | K117: 35.03 | L117: 35.23 | M117: 38.2 | N117: 46.18 | O117: 41.38 | P117: 30.82 | Q117: 38.362 | R117: 38.9884 | U117: 38.27 | V117: ='Background Calculations'!$M$55 -> 12.17 | W117: 465.7459 | X117: 400.541474 | Y117: 46.57459 | Z117: ='Farm Bill Calculator'!$G$23 -> 40.67 | AA117: ='Farm Bill Calculator'!$G$37 -> 10.1 | AB117: =AA117*Z117 -> 410.767 | AC117: =IF(X117-AB117>0,X117-AB117,0) -> 0 | AD117: =MIN(AC117,Y117) -> 0
B118: AlleganSoybeansIrrigated | C118: 26067 | D118: Michigan | E118: Allegan | G118: Soybeans | H118: Bushel | I118: Irrigated | J118: 59.69 | K118: 64.93 | L118: 64.32 | M118: 66.56 | N118: 59.49 | O118: 63.53 | P118: 62.58 | Q118: 63.856 | R118: 63.7632 | S118: 0.56 | U118: 63.47666667 | V118: ='Background Calculations'!$M$55 -> 12.17 | W118: 772.5110333 | X118: 664.3594887 | Y118: 77.25110333 | Z118: ='Farm Bill Calculator'!$G$23 -> 40.67 | AA118: ='Farm Bill Calculator'!$G$37 -> 10.1 | AB118: =AA118*Z118 -> 410.767 | AC118: =IF(X118-AB118>0,X118-AB118,0) -> 253.5924887 | AD118: =MIN(AC118,Y118) -> 77.25110333
B119: AlleganSoybeansNonirrigated | C119: 26069 | D119: Michigan | E119: Allegan | G119: Soybeans | H119: Bushel | I119: Nonirrigated | J119: 51.05 | K119: 52.69 | L119: 40.93 | M119: 48.28 | N119: 46.18 | O119: 50.96 | P119: 49.04 | Q119: 47.618 | R119: 48.9556 | S119: 0.54 | U119: 47.83333333 | V119: ='Background Calculations'!$M$55 -> 12.17 | W119: 582.1316667 | X119: 500.6332333 | Y119: 58.21316667 | Z119: ='Farm Bill Calculator'!$G$23 -> 40.67 | AA119: ='Farm Bill Calculator'!$G$37 -> 10.1 | AB119: 410.767 | AC119: 89.86623333 | AD119: 58.21316667
B120: AlpenaSoybeansAll | C120: 26069 | D120: Michigan | E120: Alpena | G120: Soybeans | H120: Bushel | I120: All | J120: 35.73 | K120: 38.35 | L120: 27.54 | M120: 47.45 | N120: 47.3 | O120: 37.34 | P120: 38.17 | Q120: 39.83 | R120: 42.288 | S120: 0.27 | U120: 40.93666667 | V120: ='Background Calculations'!$M$55 -> 12.17 | W120: 498.1992333 | X120: 428.4513407 | Y120: 49.81992333 | Z120: ='Farm Bill Calculator'!$G$23 -> 40.67 | AA120: ='Farm Bill Calculator'!$G$37 -> 10.1 | AB120: 410.767 | AC120: 17.68434067 | AD120: 17.68434067
B121: AntrimSoybeansAll | C121: 26069 | D121: Michigan | E121: Antrim | G121: Soybeans | H121: Bushel | I121: All | J121: 37 | K121: 37 | L121: 34.4 | M121: 35.6 | N121: 43.36 | O121: 38.34 | P121: 36.44 | Q121: 37.628 | R121: 38.2736 | U121: 36.79333333 | V121: ='Background Calculations'!$M$55 -> 12.17 | W121: 447.7748667 | X121: 385.0863853 | Y121: 44.77748667 | Z121: ='Farm Bill Calculator'!$G$23 -> 40.67 | AA121: ='Farm Bill Calculator'!$G$37 -> 10.1 | AB121: 410.767 | AC121: 0 | AD121: 0
B122: ArenacSoybeansAll | C122: 26071 | D122: Michigan | E122: Arenac | G122: Soybeans | H122: Bushel | I122: All | J122: 44.29 | K122: 48.74 | L122: 34.98 | M122: 43.93 | N122: 51.91 | O122: 44.05 | P122: 44.05 | Q122: 44.204 | R122: 46.0488 | S122: 0.42 | U122: 44.01 | V122: ='Background Calculations'!$M$55 -> 12.17 | W122: 535.6017 | X122: 460.617462 | Y122: 53.56017 | Z122: ='Farm Bill Calculator'!$G$23 -> 40.67 | AA122: ='Farm Bill Calculator'!$G$37 -> 10.1 | AB122: 410.767 | AC122: 49.850462 | AD122: 49.850462
B123: BarrySoybeansIrrigated | C123: 26071 | D123: Michigan | E123: Barry | G123: Soybeans | H123: Bushel | I123: Irrigated | J123: 59.42 | K123: 62.29 | L123: 48.98 | M123: 59.78 | N123: 59.82 | O123: 59.7 | P123: 60.91 | Q123: 58.318 | R123: 60.1856 | S123: 0.48 | U123: 59.76666667 | V123: ='Background Calculations'!$M$55 -> 12.17 | W123: 727.3603333 | X123: 625.5298867 | Y123: 72.73603333 | Z123: ='Farm Bill Calculator'!$G$23 -> 40.67 | AA123: ='Farm Bill Calculator'!$G$37 -> 10.1 | AB123: 410.767 | AC123: 214.7628867 | AD123: 72.73603333
B124: BarrySoybeansNonirrigated | C124: 26073 | D124: Michigan | E124: Barry | G124: Soybeans | H124: Bushel | I124: Nonirrigated | J124: 46.52 | K124: 49.12 | L124: 49.98 | M124: 45.96 | N124: 51.41 | O124: 52.03 | P124: 43.84 | Q124: 49.114 | R124: 48.9408 | S124: 0.47 | U124: 49.11666667 | V124: ='Background Calculations'!$M$55 -> 12.17 | W124: 597.7498333 | X124: 514.0648567 | Y124: 59.77498333 | Z124: ='Farm Bill Calculator'!$G$23 -> 40.67 | AA124: ='Farm Bill Calculator'!$G$37 -> 10.1 | AB124: 410.767 | AC124: 103.2978567 | AD124: 59.77498333
B125: BaySoybeansIrrigated | C125: 26073 | D125: Michigan | E125: Bay | G125: Soybeans | H125: Bushel | I125: Irrigated | J125: 42.9 | K125: 54.67 | L125: 52.99 | M125: 63.94 | N125: 59.81 | O125: 64.06 | P125: 51.39 | Q125: 59.008 | R125: 60.2116 | S125: 0.57 | U125: 58.91333333 | V125: ='Background Calculations'!$M$55 -> 12.17 | W125: 716.9752667 | X125: 616.5987293 | Y125: 71.69752667 | Z125: ='Farm Bill Calculator'!$G$23 -> 40.67 | AA125: ='Farm Bill Calculator'!$G$37 -> 10.1 | AB125: 410.767 | AC125: 205.8317293 | AD125: 71.69752667
B126: BaySoybeansNonirrigated | C126: 26073 | D126: Michigan | E126: Bay | G126: Soybeans | H126: Bushel | I126: Nonirrigated | J126: 50.9 | K126: 60.2 | L126: 40.73 | M126: 53.77 | N126: 58.03 | O126: 51.33 | P126: 52.65 | Q126: 51.872 | R126: 54.1004 | S126: 0.57 | U126: 52.58333333 | V126: ='Background Calculations'!$M$55 -> 12.17 | W126: 639.9391667 | X126: 550.3476833 | Y126: 63.99391667 | Z126: ='Farm Bill Calculator'!$G$23 -> 40.67 | AA126: ='Farm Bill Calculator'!$G$37 -> 10.1 | AB126: 410.767 | AC126: 139.5806833 | AD126: 63.99391667
B127: BerrienSoybeansIrrigated | C127: 26073 | D127: Michigan | E127: Berrien | G127: Soybeans | H127: Bushel | I127: Irrigated | J127: 57.86 | K127: 68.77 | L127: 56.58 | M127: 67.15 | N127: 63.87 | O127: 58.53 | P127: 57.93 | Q127: 61.272 | R127: 62.2104 | S127: 0.46 | U127: 60.11 | V127: ='Background Calculations'!$M$55 -> 12.17 | W127: 731.5387 | X127: 629.123282 | Y127: 73.15387 | Z127: ='Farm Bill Calculator'!$G$23 -> 40.67 | AA127: ='Farm Bill Calculator'!$G$37 -> 10.1 | AB127: 410.767 | AC127: 218.356282 | AD127: 73.15387
B128: BerrienSoybeansNonirrigated | C128: 26073 | D128: Michigan | E128: Berrien | G128: Soybeans | H128: Bushel | I128: Nonirrigated | J128: 43.95 | K128: 53.63 | L128: 41.72 | M128: 45.19 | N128: 52.62 | O128: 45.78 | P128: 46.35 | Q128: 46.772 | R128: 47.7824 | S128: 0.44 | U128: 45.77333333 | V128: ='Background Calculations'!$M$55 -> 12.17 | W128: 557.0614667 | X128: 479.0728613 | Y128: 55.70614667 | Z128: ='Farm Bill Calculator'!$G$23 -> 40.67 | AA128: ='Farm Bill Calculator'!$G$37 -> 10.1 | AB128: 410.767 | AC128: 68.30586133 | AD128: 55.70614667
B129: BranchSoybeansIrrigated | C129: 26075 | D129: Michigan | E129: Branch | G129: Soybeans | H129: Bushel | I129: Irrigated | J129: 54.04 | K129: 60.46 | L129: 57.02 | M129: 60.21 | N129: 62.11 | O129: 61.88 | P129: 58.09 | Q129: 60.272 | R129: 60.9224 | S129: 0.41 | U129: 60.06 | V129: ='Background Calculations'!$M$55 -> 12.17 | W129: 730.9302 | X129: 628.599972 | Y129: 73.09302 | Z129: ='Farm Bill Calculator'!$G$23 -> 40.67 | AA129: ='Farm Bill Calculator'!$G$37 -> 10.1 | AB129: 410.767 | AC129: 217.832972 | AD129: 73.09302
B130: BranchSoybeansNonirrigated | C130: 26075 | D130: Michigan | E130: Branch | G130: Soybeans | H130: Bushel | I130: Nonirrigated | J130: 41.84 | K130: 48.41 | L130: 45.68 | M130: 47.02 | N130: 51.75 | O130: 53.52 | P130: 40.74 | Q130: 48.132 | R130: 48.6224 | S130: 0.39 | U130: 48.15 | V130: ='Background Calculations'!$M$55 -> 12.17 | W130: 585.9855 | X130: 503.94753 | Y130: 58.59855 | Z130: ='Farm Bill Calculator'!$G$23 -> 40.67 | AA130: ='Farm Bill Calculator'!$G$37 -> 10.1 | AB130: 410.767 | AC130: 93.18053 | AD130: 58.59855
B131: CalhounSoybeansIrrigated | C131: 26075 | D131: Michigan | E131: Calhoun | G131: Soybeans | H131: Bushel | I131: Irrigated | J131: 55.36 | K131: 65.31 | L131: 52.27 | M131: 60.05 | N131: 61.41 | O131: 61.55 | P131: 53.76 | Q131: 58.198 | R131: 59.3836 | S131: 0.39 | U131: 58.40666667 | V131: ='Background Calculations'!$M$55 -> 12.17 | W131: 710.8091333 | X131: 611.2958547 | Y131: 71.08091333 | Z131: ='Farm Bill Calculator'!$G$23 -> 40.67 | AA131: ='Farm Bill Calculator'!$G$37 -> 10.1 | AB131: 410.767 | AC131: 200.5288547 | AD131: 71.08091333
B132: CalhounSoybeansNonirrigated | C132: 26075 | D132: Michigan | E132: Calhoun | G132: Soybeans | H132: Bushel | I132: Nonirrigated | J132: 36 | K132: 45.24 | L132: 38.51 | M132: 41.93 | N132: 48.12 | O132: 50 | P132: 40.76 | Q132: 44.244 | R132: 45.3908 | S132: 0.38 | U132: 43.60333333 | V132: ='Background Calculations'!$M$55 -> 12.17 | W132: 530.6525667 | X132: 456.3612073 | Y132: 53.06525667 | Z132: ='Farm Bill Calculator'!$G$23 -> 40.67 | AA132: ='Farm Bill Calculator'!$G$37 -> 10.1 | AB132: 410.767 | AC132: 45.59420733 | AD132: 45.59420733
B133: =E133&G133&I133 -> CassSoybeansIrrigated | C133: 26075 | D133: Michigan | E133: Cass | G133: Soybeans | H133: Bushel | I133: Irrigated | J133: 59.72 | K133: 52.35 | L133: 63.32 | M133: 65.82 | N133: 66.54 | O133: 56.57 | P133: 58.8 | Q133: =AVERAGE(L133:P133)+S133 -> 62.67 | R133: 62.54 | S133: 0.46 | U133: 62.64666667 | V133: ='Background Calculations'!$M$55 -> 12.17 | W133: =U133*V133 -> 762.4099333 | X133: =W133*0.86 -> 655.6725427 | Y133: =W133*0.1 -> 76.24099333 | Z133: ='Farm Bill Calculator'!$G$23 -> 40.67 | AA133: ='Farm Bill Calculator'!$G$37 -> 10.1 | AB133: 410.767 | AC133: 244.9055427 | AD133: 76.24099333
B134: CassSoybeansNonirrigated | C134: 26077 | D134: Michigan | E134: Cass | G134: Soybeans | H134: Bushel | I134: Nonirrigated | J134: 44.03 | K134: 51.2 | L134: 44.02 | M134: 41.37 | N134: 49.56 | O134: 41.82 | P134: 42.93 | Q134: 44.33 | R134: =AVERAGE(M134:Q134)+S134 -> 44.392 | S134: 0.39 | U134: =(SUM(L134:P134)-MIN(L134:P134)-MAX(L134:P134))/(COUNT(L134:P134)-2) -> 42.92333333 | V134: ='Background Calculations'!$M$55 -> 12.17 | W134: 522.3769667 | X134: 449.2441913 | Y134: 52.23769667 | Z134: ='Farm Bill Calculator'!$G$23 -> 40.67 | AA134: ='Farm Bill Calculator'!$G$37 -> 10.1 | AB134: 410.767 | AC134: 38.47719133 | AD134: 38.47719133
B135: CharlevoixSoybeansAll | C135: 26077 | D135: Michigan | E135: Charlevoix | G135: Soybeans | H135: Bushel | I135: All | J135: 40.8 | K135: 40.8 | L135: 40.8 | M135: 40.8 | N135: 45.8 | O135: 40.8 | P135: 40.8 | Q135: 41.8 | R135: 42 | U135: 40.8 | V135: ='Background Calculations'!$M$55 -> 12.17 | W135: 496.536 | X135: 427.02096 | Y135: 49.6536 | Z135: ='Farm Bill Calculator'!$G$23 -> 40.67 | AA135: ='Farm Bill Calculator'!$G$37 -> 10.1 | AB135: 410.767 | AC135: 16.25396 | AD135: 16.25396
B136: CheboyganSoybeansAll | C136: 26077 | D136: Michigan | E136: Cheboygan | G136: Soybeans | H136: Bushel | I136: All | J136: 40.8 | K136: 40.8 | L136: 40.8 | M136: 40.8 | N136: 42 | O136: 40.8 | P136: 40.8 | Q136: 41.04 | R136: 41.088 | U136: 40.8 | V136: ='Background Calculations'!$M$55 -> 12.17 | W136: 496.536 | X136: 427.02096 | Y136: 49.6536 | Z136: ='Farm Bill Calculator'!$G$23 -> 40.67 | AA136: ='Farm Bill Calculator'!$G$37 -> 10.1 | AB136: 410.767 | AC136: 16.25396 | AD136: 16.25396
B137: ChippewaSoybeansAll | C137: 26077 | D137: Michigan | E137: Chippewa | G137: Soybeans | H137: Bushel | I137: All | J137: 37 | K137: 37 | L137: 1131.11 | M137: 40.1 | N137: 33.2 | O137: 25.6 | P137: 28.99 | Q137: 251.8 | R137: 75.938 | U137: 34.09666667 | V137: ='Background Calculations'!$M$55 -> 12.17 | W137: 414.9564333 | X137: 356.8625327 | Y137: 41.49564333 | Z137: ='Farm Bill Calculator'!$G$23 -> 40.67 | AA137: ='Farm Bill Calculator'!$G$37 -> 10.1 | AB137: 410.767 | AC137: 0 | AD137: 0
B138: ClareSoybeansAll | C138: 26077 | D138: Michigan | E138: Clare | G138: Soybeans | H138: Bushel | I138: All | J138: 34.13 | K138: 33.95 | L138: 26.43 | M138: 30.79 | N138: 30.01 | O138: 34.41 | P138: 31.12 | Q138: 30.552 | R138: 31.3764 | U138: 30.64 | V138: ='Background Calculations'!$M$55 -> 12.17 | W138: 372.8888 | X138: 320.684368 | Y138: 37.28888 | Z138: ='Farm Bill Calculator'!$G$23 -> 40.67 | AA138: ='Farm Bill Calculator'!$G$37 -> 10.1 | AB138: 410.767 | AC138: 0 | AD138: 0
B139: ClintonSoybeansIrrigated | C139: 26079 | D139: Michigan | E139: Clinton | G139: Soybeans | H139: Bushel | I139: Irrigated | J139: 53.13 | K139: 49.3 | L139: 48.92 | M139: 49.95 | N139: 60.38 | O139: 69 | P139: 54.02 | Q139: 56.924 | R139: 58.5248 | S139: 0.47 | U139: 54.78333333 | V139: ='Background Calculations'!$M$55 -> 12.17 | W139: 666.7131667 | X139: 573.3733233 | Y139: 66.67131667 | Z139: ='Farm Bill Calculator'!$G$23 -> 40.67 | AA139: ='Farm Bill Calculator'!$G$37 -> 10.1 | AB139: 410.767 | AC139: 162.6063233 | AD139: 66.67131667
B140: ClintonSoybeansNonirrigated | C140: 26079 | D140: Michigan | E140: Clinton | G140: Soybeans | H140: Bushel | I140: Nonirrigated | J140: 43.35 | K140: 43.9 | L140: 41.92 | M140: 49.95 | N140: 54.19 | O140: 50.51 | P140: 45.68 | Q140: 48.92 | R140: 50.32 | S140: 0.47 | U140: 48.71333333 | V140: ='Background Calculations'!$M$55 -> 12.17 | W140: 592.8412667 | X140: 509.8434893 | Y140: 59.28412667 | Z140: ='Farm Bill Calculator'!$G$23 -> 40.67 | AA140: ='Farm Bill Calculator'!$G$37 -> 10.1 | AB140: 410.767 | AC140: 99.07648933 | AD140: 59.28412667
B141: DeltaSoybeansAll | C141: 26079 | D141: Michigan | E141: Delta | G141: Soybeans | H141: Bushel | I141: All | J141: 37 | K141: 37 | L141: 34.4 | M141: 40.1 | N141: 33.2 | O141: 17.6 | P141: 28.99 | Q141: 30.858 | R141: 30.1496 | U141: 32.19666667 | V141: ='Background Calculations'!$M$55 -> 12.17 | W141: 391.8334333 | X141: 336.9767527 | Y141: 39.18334333 | Z141: ='Farm Bill Calculator'!$G$23 -> 40.67 | AA141: ='Farm Bill Calculator'!$G$37 -> 10.1 | AB141: 410.767 | AC141: 0 | AD141: 0
B142: EatonSoybeansIrrigated | C142: 26081 | D142: Michigan | E142: Eaton | G142: Soybeans | H142: Bushel | I142: Irrigated | J142: 54.37 | K142: 64.69 | L142: 49.04 | M142: 55.36 | N142: 56.22 | O142: 49.63 | P142: 46.52 | Q142: 51.844 | R142: 52.4048 | S142: 0.49 | U142: 51.34333333 | V142: ='Background Calculations'!$M$55 -> 12.17 | W142: 624.8483667 | X142: 537.3695953 | Y142: 62.48483667 | Z142: ='Farm Bill Calculator'!$G$23 -> 40.67 | AA142: ='Farm Bill Calculator'!$G$37 -> 10.1 | AB142: 410.767 | AC142: 126.6025953 | AD142: 62.48483667
B143: EatonSoybeansNonirrigated | C143: 26081 | D143: Michigan | E143: Eaton | G143: Soybeans | H143: Bushel | I143: Nonirrigated | J143: 45.59 | K143: 51.8 | L143: 38.32 | M143: 51.17 | N143: 54.25 | O143: 52.26 | P143: 45.16 | Q143: 48.722 | R143: 50.8024 | S143: 0.49 | U143: 49.53 | V143: ='Background Calculations'!$M$55 -> 12.17 | W143: 602.7801 | X143: 518.390886 | Y143: 60.27801 | Z143: ='Farm Bill Calculator'!$G$23 -> 40.67 | AA143: ='Farm Bill Calculator'!$G$37 -> 10.1 | AB143: 410.767 | AC143: 107.623886 | AD143: 60.27801
B144: EmmetSoybeansAll | C144: 26081 | D144: Michigan | E144: Emmet | G144: Soybeans | H144: Bushel | I144: All | J144: 40.8 | K144: 40.8 | L144: 40.8 | M144: 40.8 | N144: 40.8 | O144: 40.8 | P144: 40.8 | Q144: 40.8 | R144: 40.8 | U144: 40.8 | V144: ='Background Calculations'!$M$55 -> 12.17 | W144: 496.536 | X144: 427.02096 | Y144: 49.6536 | Z144: ='Farm Bill Calculator'!$G$23 -> 40.67 | AA144: ='Farm Bill Calculator'!$G$37 -> 10.1 | AB144: 410.767 | AC144: 16.25396 | AD144: 16.25396
B145: GeneseeSoybeansAll | C145: 26081 | D145: Michigan | E145: Genesee | G145: Soybeans | H145: Bushel | I145: All | J145: 42.77 | K145: 49.5 | L145: 39.39 | M145: 46.79 | N145: 49.35 | O145: 41 | P145: 43.01 | Q145: 44.258 | R145: 45.2316 | S145: 0.35 | U145: 43.6 | V145: ='Background Calculations'!$M$55 -> 12.17 | W145: 530.612 | X145: 456.32632 | Y145: 53.0612 | Z145: ='Farm Bill Calculator'!$G$23 -> 40.67 | AA145: ='Farm Bill Calculator'!$G$37 -> 10.1 | AB145: 410.767 | AC145: 45.55932 | AD145: 45.55932
B146: GladwinSoybeansAll | C146: 26081 | D146: Michigan | E146: Gladwin | G146: Soybeans | H146: Bushel | I146: All | J146: 41.26 | K146: 43.16 | L146: 34.4 | M146: 42.72 | N146: 48.47 | O146: 37.83 | P146: 37.69 | Q146: 40.622 | R146: 41.8664 | S146: 0.4 | U146: 39.41333333 | V146: ='Background Calculations'!$M$55 -> 12.17 | W146: 479.6602667 | X146: 412.5078293 | Y146: 47.96602667 | Z146: ='Farm Bill Calculator'!$G$23 -> 40.67 | AA146: ='Farm Bill Calculator'!$G$37 -> 10.1 | AB146: 410.767 | AC146: 1.740829333 | AD146: 1.740829333
B147: Grand TraverseSoybeansAll | C147: 26085 | D147: Michigan | E147: Grand Traverse | G147: Soybeans | H147: Bushel | I147: All | J147: 34.87 | K147: 27.75 | L147: 34.4 | M147: 35.9 | N147: 40.92 | O147: 34.79 | P147: 41.13 | Q147: 37.428 | R147: 38.0336 | U147: 37.20333333 | V147: ='Background Calculations'!$M$55 -> 12.17 | W147: 452.7645667 | X147: 389.3775273 | Y147: 45.27645667 | Z147: ='Farm Bill Calculator'!$G$23 -> 40.67 | AA147: ='Farm Bill Calculator'!$G$37 -> 10.1 | AB147: 410.767 | AC147: 0 | AD147: 0
B148: GratiotSoybeansIrrigated | C148: 26085 | D148: Michigan | E148: Gratiot | G148: Soybeans | H148: Bushel | I148: Irrigated | J148: 51.49 | K148: 57.44 | L148: 48.76 | M148: 52.1 | N148: 56 | O148: 55.68 | P148: 49.79 | Q148: 52.986 | R148: 53.8312 | S148: 0.52 | U148: 52.52333333 | V148: ='Background Calculations'!$M$55 -> 12.17 | W148: 639.2089667 | X148: 549.7197113 | Y148: 63.92089667 | Z148: ='Farm Bill Calculator'!$G$23 -> 40.67 | AA148: ='Farm Bill Calculator'!$G$37 -> 10.1 | AB148: 410.767 | AC148: 138.9527113 | AD148: 63.92089667
B149: GratiotSoybeansNonirrigated | C149: 26087 | D149: Michigan | E149: Gratiot | G149: Soybeans | H149: Bushel | I149: Nonirrigated | J149: 45.65 | K149: 55.13 | L149: 42.4 | M149: 53.22 | N149: 52.74 | O149: 52.05 | P149: 49.55 | Q149: 50.512 | R149: 52.1344 | S149: 0.52 | U149: 51.44666667 | V149: ='Background Calculations'!$M$55 -> 12.17 | W149: 626.1059333 | X149: 538.4511027 | Y149: 62.61059333 | Z149: ='Farm Bill Calculator'!$G$23 -> 40.67 | AA149: ='Farm Bill Calculator'!$G$37 -> 10.1 | AB149: 410.767 | AC149: 127.6841027 | AD149: 62.61059333
B150: HillsdaleSoybeansIrrigated | C150: 26087 | D150: Michigan | E150: Hillsdale | G150: Soybeans | H150: Bushel | I150: Irrigated | J150: 52.32 | K150: 57.19 | L150: 56.09 | M150: 59.46 | N150: 57.39 | O150: 62.27 | P150: 60.01 | Q150: 59.434 | R150: 60.1028 | S150: 0.39 | U150: 58.95333333 | V150: ='Background Calculations'!$M$55 -> 12.17 | W150: 717.4620667 | X150: 617.0173773 | Y150: 71.74620667 | Z150: ='Farm Bill Calculator'!$G$23 -> 40.67 | AA150: ='Farm Bill Calculator'!$G$37 -> 10.1 | AB150: 410.767 | AC150: 206.2503773 | AD150: 71.74620667
B151: HillsdaleSoybeansNonirrigated | C151: 26087 | D151: Michigan | E151: Hillsdale | G151: Soybeans | H151: Bushel | I151: Nonirrigated | J151: 45.84 | K151: 48.78 | L151: 45.17 | M151: 49.73 | N151: 50.63 | O151: 53.24 | P151: 48.32 | Q151: 49.808 | R151: 50.7356 | S151: 0.39 | U151: 49.56 | V151: ='Background Calculations'!$M$55 -> 12.17 | W151: 603.1452 | X151: 518.704872 | Y151: 60.31452 | Z151: ='Farm Bill Calculator'!$G$23 -> 40.67 | AA151: ='Farm Bill Calculator'!$G$37 -> 10.1 | AB151: 410.767 | AC151: 107.937872 | AD151: 60.31452
B152: HuronSoybeansIrrigated | C152: 26089 | D152: Michigan | E152: Huron | G152: Soybeans | H152: Bushel | I152: Irrigated | J152: 50.92 | K152: 59.55 | L152: 47.82 | M152: 62.25 | N152: 56.77 | O152: 60.19 | P152: 63.57 | Q152: 58.69 | R152: 60.864 | S152: 0.57 | U152: 59.73666667 | V152: ='Background Calculations'!$M$55 -> 12.17 | W152: 726.9952333 | X152: 625.2159007 | Y152: 72.69952333 | Z152: ='Farm Bill Calculator'!$G$23 -> 40.67 | AA152: ='Farm Bill Calculator'!$G$37 -> 10.1 | AB152: 410.767 | AC152: 214.4489007 | AD152: 72.69952333
B153: HuronSoybeansNonirrigated | C153: 26089 | D153: Michigan | E153: Huron | G153: Soybeans | H153: Bushel | I153: Nonirrigated | J153: 57.26 | K153: 49.75 | L153: 48.71 | M153: 53.08 | N153: 58.65 | O153: 48.25 | P153: 42.88 | Q153: 50.884 | R153: 51.3188 | S153: 0.57 | U153: 50.01333333 | V153: ='Background Calculations'!$M$55 -> 12.17 | W153: 608.6622667 | X153: 523.4495493 | Y153: 60.86622667 | Z153: ='Farm Bill Calculator'!$G$23 -> 40.67 | AA153: ='Farm Bill Calculator'!$G$37 -> 10.1 | AB153: 410.767 | AC153: 112.6825493 | AD153: 60.86622667
B154: InghamSoybeansIrrigated | C154: 26089 | D154: Michigan | E154: Ingham | G154: Soybeans | H154: Bushel | I154: Irrigated | J154: 42.39 | K154: 50.16 | L154: 49.22 | M154: 50.9 | N154: 60.95 | O154: 57.38 | P154: 55.95 | Q154: 55.4 | R154: 56.636 | S154: 0.52 | U154: 54.74333333 | V154: ='Background Calculations'!$M$55 -> 12.17 | W154: 666.2263667 | X154: 572.9546753 | Y154: 66.62263667 | Z154: ='Farm Bill Calculator'!$G$23 -> 40.67 | AA154: ='Farm Bill Calculator'!$G$37 -> 10.1 | AB154: 410.767 | AC154: 162.1876753 | AD154: 66.62263667
B155: InghamSoybeansNonirrigated | C155: 26091 | D155: Michigan | E155: Ingham | G155: Soybeans | H155: Bushel | I155: Nonirrigated | J155: 50.84 | K155: 54.48 | L155: 42.92 | M155: 51.04 | N155: 51.79 | O155: 45.98 | P155: 45.43 | Q155: 47.952 | R155: 48.9584 | S155: 0.52 | U155: 47.48333333 | V155: ='Background Calculations'!$M$55 -> 12.17 | W155: 577.8721667 | X155: 496.9700633 | Y155: 57.78721667 | Z155: ='Farm Bill Calculator'!$G$23 -> 40.67 | AA155: ='Farm Bill Calculator'!$G$37 -> 10.1 | AB155: 410.767 | AC155: 86.20306333 | AD155: 57.78721667
B156: IoniaSoybeansIrrigated | C156: 26091 | D156: Michigan | E156: Ionia | G156: Soybeans | H156: Bushel | I156: Irrigated | J156: 60.06 | K156: 62.16 | L156: 62.13 | M156: 66.22 | N156: 68.52 | O156: 70.92 | P156: 60.63 | Q156: 66.264 | R156: 67.0908 | S156: 0.58 | U156: 65.62333333 | V156: ='Background Calculations'!$M$55 -> 12.17 | W156: 798.6359667 | X156: 686.8269313 | Y156: 79.86359667 | Z156: ='Farm Bill Calculator'!$G$23 -> 40.67 | AA156: ='Farm Bill Calculator'!$G$37 -> 10.1 | AB156: 410.767 | AC156: 276.0599313 | AD156: 79.86359667
B157: IoniaSoybeansNonirrigated | C157: 26091 | D157: Michigan | E157: Ionia | G157: Soybeans | H157: Bushel | I157: Nonirrigated | J157: 47.16 | K157: 56.7 | L157: 49.56 | M157: 49.33 | N157: 61.88 | O157: 56.8 | P157: 48.54 | Q157: 53.802 | R157: 54.6504 | S157: 0.58 | U157: 51.89666667 | V157: ='Background Calculations'!$M$55 -> 12.17 | W157: 631.5824333 | X157: 543.1608927 | Y157: 63.15824333 | Z157: ='Farm Bill Calculator'!$G$23 -> 40.67 | AA157: ='Farm Bill Calculator'!$G$37 -> 10.1 | AB157: 410.767 | AC157: 132.3938927 | AD157: 63.15824333
B158: IoscoSoybeansAll | C158: 26091 | D158: Michigan | E158: Iosco | G158: Soybeans | H158: Bushel | I158: All | J158: 38.94 | K158: 47.72 | L158: 33.52 | M158: 33.82 | N158: 42.07 | O158: 38.43 | P158: 40.3 | Q158: 38.048 | R158: 38.9536 | S158: 0.42 | U158: 37.51666667 | V158: ='Background Calculations'!$M$55 -> 12.17 | W158: 456.5778333 | X158: 392.6569367 | Y158: 45.65778333 | Z158: ='Farm Bill Calculator'!$G$23 -> 40.67 | AA158: ='Farm Bill Calculator'!$G$37 -> 10.1 | AB158: 410.767 | AC158: 0 | AD158: 0
B159: IsabellaSoybeansIrrigated | C159: 26091 | D159: Michigan | E159: Isabella | G159: Soybeans | H159: Bushel | I159: Irrigated | J159: 48.11 | K159: 50.27 | L159: 45.14 | M159: 53.22 | N159: 55.88 | O159: 47.35 | P159: 40.27 | Q159: 48.862 | R159: 49.6064 | S159: 0.49 | U159: 48.57 | V159: ='Background Calculations'!$M$55 -> 12.17 | W159: 591.0969 | X159: 508.343334 | Y159: 59.10969 | Z159: ='Farm Bill Calculator'!$G$23 -> 40.67 | AA159: ='Farm Bill Calculator'!$G$37 -> 10.1 | AB159: 410.767 | AC159: 97.576334 | AD159: 59.10969
B160: IsabellaSoybeansNonirrigated | C160: 26093 | D160: Michigan | E160: Isabella | G160: Soybeans | H160: Bushel | I160: Nonirrigated | J160: 41.99 | K160: 43.24 | L160: 37.62 | M160: 40.41 | N160: 49.18 | O160: 47.97 | P160: 41.14 | Q160: 43.754 | R160: 44.9808 | S160: 0.49 | U160: 43.17333333 | V160: ='Background Calculations'!$M$55 -> 12.17 | W160: 525.4194667 | X160: 451.8607413 | Y160: 52.54194667 | Z160: ='Farm Bill Calculator'!$G$23 -> 40.67 | AA160: ='Farm Bill Calculator'!$G$37 -> 10.1 | AB160: 410.767 | AC160: 41.09374133 | AD160: 41.09374133
B161: JacksonSoybeansIrrigated | C161: 26093 | D161: Michigan | E161: Jackson | G161: Soybeans | H161: Bushel | I161: Irrigated | J161: 59.69 | K161: 58.05 | L161: 59.93 | M161: 56.03 | N161: 58.96 | O161: 59.55 | P161: 67.6 | Q161: 60.774 | R161: 60.9428 | S161: 0.36 | U161: 59.48 | V161: ='Background Calculations'!$M$55 -> 12.17 | W161: 723.8716 | X161: 622.529576 | Y161: 72.38716 | Z161: ='Farm Bill Calculator'!$G$23 -> 40.67 | AA161: ='Farm Bill Calculator'!$G$37 -> 10.1 | AB161: 410.767 | AC161: 211.762576 | AD161: 72.38716
B162: JacksonSoybeansNonirrigated | C162: 26093 | D162: Michigan | E162: Jackson | G162: Soybeans | H162: Bushel | I162: Nonirrigated | J162: 35.21 | K162: 43.35 | L162: 44.59 | M162: 40.74 | N162: 49.27 | O162: 47.83 | P162: 44.58 | Q162: 45.752 | R162: 45.9844 | S162: 0.35 | U162: 45.66666667 | V162: ='Background Calculations'!$M$55 -> 12.17 | W162: 555.7633333 | X162: 477.9564667 | Y162: 55.57633333 | Z162: ='Farm Bill Calculator'!$G$23 -> 40.67 | AA162: ='Farm Bill Calculator'!$G$37 -> 10.1 | AB162: 410.767 | AC162: 67.18946667 | AD162: 55.57633333
B163: KalamazooSoybeansIrrigated | C163: 26095 | D163: Michigan | E163: Kalamazoo | G163: Soybeans | H163: Bushel | I163: Irrigated | J163: 57.7 | K163: 69.23 | L163: 60.43 | M163: 68.24 | N163: 66.62 | O163: 68.55 | P163: 64.92 | Q163: 66.302 | R163: 67.4764 | S163: 0.55 | U163: 66.59333333 | V163: ='Background Calculations'!$M$55 -> 12.17 | W163: 810.4408667 | X163: 696.9791453 | Y163: 81.04408667 | Z163: ='Farm Bill Calculator'!$G$23 -> 40.67 | AA163: ='Farm Bill Calculator'!$G$37 -> 10.1 | AB163: 410.767 | AC163: 286.2121453 | AD163: 81.04408667
B164: KalamazooSoybeansNonirrigated | C164: 26095 | D164: Michigan | E164: Kalamazoo | G164: Soybeans | H164: Bushel | I164: Nonirrigated | J164: 39.31 | K164: 48.22 | L164: 43.55 | M164: 39.27 | N164: 51.33 | O164: 48.83 | P164: 42.11 | Q164: 45.488 | R164: 45.8756 | S164: 0.47 | U164: 44.83 | V164: ='Background Calculations'!$M$55 -> 12.17 | W164: 545.5811 | X164: 469.199746 | Y164: 54.55811 | Z164: ='Farm Bill Calculator'!$G$23 -> 40.67 | AA164: ='Farm Bill Calculator'!$G$37 -> 10.1 | AB164: 410.767 | AC164: 58.432746 | AD164: 54.55811
B165: KalkaskaSoybeansAll | C165: 26095 | D165: Michigan | E165: Kalkaska | G165: Soybeans | H165: Bushel | I165: All | J165: 37 | K165: 37 | L165: 34.4 | M165: 35.2 | N165: 43.36 | O165: 38.34 | P165: 36.44 | Q165: 37.548 | R165: 38.1776 | U165: 36.66 | V165: ='Background Calculations'!$M$55 -> 12.17 | W165: 446.1522 | X165: 383.690892 | Y165: 44.61522 | Z165: ='Farm Bill Calculator'!$G$23 -> 40.67 | AA165: ='Farm Bill Calculator'!$G$37 -> 10.1 | AB165: 410.767 | AC165: 0 | AD165: 0
B166: KentSoybeansIrrigated | C166: 26097 | D166: Michigan | E166: Kent | G166: Soybeans | H166: Bushel | I166: Irrigated | J166: 48.54 | K166: 66.62 | L166: 48.68 | M166: 61.28 | N166: 61.52 | O166: 67.24 | P166: 57.34 | Q166: 59.792 | R166: 62.0144 | S166: 0.58 | U166: 60.04666667 | V166: ='Background Calculations'!$M$55 -> 12.17 | W166: 730.7679333 | X166: 628.4604227 | Y166: 73.07679333 | Z166: ='Farm Bill Calculator'!$G$23 -> 40.67 | AA166: ='Farm Bill Calculator'!$G$37 -> 10.1 | AB166: 410.767 | AC166: 217.6934227 | AD166: 73.07679333
B167: KentSoybeansNonirrigated | C167: 26097 | D167: Michigan | E167: Kent | G167: Soybeans | H167: Bushel | I167: Nonirrigated | J167: 43.61 | K167: 46.72 | L167: 46.32 | M167: 48.75 | N167: 54.29 | O167: 52.02 | P167: 45.79 | Q167: 50.004 | R167: 50.7408 | S167: 0.57 | U167: 49.03 | V167: ='Background Calculations'!$M$55 -> 12.17 | W167: 596.6951 | X167: 513.157786 | Y167: 59.66951 | Z167: ='Farm Bill Calculator'!$G$23 -> 40.67 | AA167: ='Farm Bill Calculator'!$G$37 -> 10.1 | AB167: 410.767 | AC167: 102.390786 | AD167: 59.66951
B168: LapeerSoybeansAll | C168: 26097 | D168: Michigan | E168: Lapeer | G168: Soybeans | H168: Bushel | I168: All | J168: 42.7 | K168: 47.67 | L168: 36.84 | M168: 50.55 | N168: 48.62 | O168: 41.29 | P168: 40.5 | Q168: 43.99 | R168: 45.42 | S168: 0.43 | U168: 43.47 | V168: ='Background Calculations'!$M$55 -> 12.17 | W168: 529.0299 | X168: 454.965714 | Y168: 52.90299 | Z168: ='Farm Bill Calculator'!$G$23 -> 40.67 | AA168: ='Farm Bill Calculator'!$G$37 -> 10.1 | AB168: 410.767 | AC168: 44.198714 | AD168: 44.198714
B169: LeelanauSoybeansAll | C169: 26099 | D169: Michigan | E169: Leelanau | G169: Soybeans | H169: Bushel | I169: All | J169: 45.13 | K169: 40.8 | L169: 40.8 | M169: 40.8 | N169: 40.92 | O169: 40.8 | P169: 40.8 | Q169: 40.824 | R169: 40.8288 | U169: 40.8 | V169: ='Background Calculations'!$M$55 -> 12.17 | W169: 496.536 | X169: 427.02096 | Y169: 49.6536 | Z169: ='Farm Bill Calculator'!$G$23 -> 40.67 | AA169: ='Farm Bill Calculator'!$G$37 -> 10.1 | AB169: 410.767 | AC169: 16.25396 | AD169: 16.25396
B170: LenaweeSoybeansIrrigated | C170: 26099 | D170: Michigan | E170: Lenawee | G170: Soybeans | H170: Bushel | I170: Irrigated | J170: 58.12 | K170: 62 | L170: 69.57 | M170: 74.05 | N170: 67.21 | O170: 73.29 | P170: 65.2 | Q170: 70.394 | R170: 70.5588 | S170: 0.53 | U170: 70.02333333 | V170: ='Background Calculations'!$M$55 -> 12.17 | W170: 852.1839667 | X170: 732.8782113 | Y170: 85.21839667 | Z170: ='Farm Bill Calculator'!$G$23 -> 40.67 | AA170: ='Farm Bill Calculator'!$G$37 -> 10.1 | AB170: 410.767 | AC170: 322.1112113 | AD170: 85.21839667
B171: LenaweeSoybeansNonirrigated | C171: 26099 | D171: Michigan | E171: Lenawee | G171: Soybeans | H171: Bushel | I171: Nonirrigated | J171: 51.91 | K171: 54.22 | L171: 52.94 | M171: 51.34 | N171: 55.72 | O171: 53.83 | P171: 57.43 | Q171: 54.782 | R171: 55.1504 | S171: 0.53 | U171: 54.16333333 | V171: ='Background Calculations'!$M$55 -> 12.17 | W171: 659.1677667 | X171: 566.8842793 | Y171: 65.91677667 | Z171: ='Farm Bill Calculator'!$G$23 -> 40.67 | AA171: ='Farm Bill Calculator'!$G$37 -> 10.1 | AB171: 410.767 | AC171: 156.1172793 | AD171: 65.91677667
B172: LivingstonSoybeansAll | C172: 26101 | D172: Michigan | E172: Livingston | G172: Soybeans | H172: Bushel | I172: All | J172: 41.61 | K172: 48.33 | L172: 47.93 | M172: 47.88 | N172: 51.87 | O172: 48.01 | P172: 48.54 | Q172: 49.306 | R172: 49.5812 | S172: 0.46 | U172: 48.16 | V172: ='Background Calculations'!$M$55 -> 12.17 | W172: 586.1072 | X172: 504.052192 | Y172: 58.61072 | Z172: ='Farm Bill Calculator'!$G$23 -> 40.67 | AA172: ='Farm Bill Calculator'!$G$37 -> 10.1 | AB172: 410.767 | AC172: 93.285192 | AD172: 58.61072
B173: LuceSoybeansAll | C173: 26101 | D173: Michigan | E173: Luce | G173: Soybeans | H173: Bushel | I173: All | J173: 37 | K173: 37 | L173: 34.4 | M173: 40.1 | N173: 33.2 | O173: 26.4 | P173: 28.99 | Q173: 32.618 | R173: 32.2616 | U173: 32.19666667 | V173: ='Background Calculations'!$M$55 -> 12.17 | W173: 391.8334333 | X173: 336.9767527 | Y173: 39.18334333 | Z173: ='Farm Bill Calculator'!$G$23 -> 40.67 | AA173: ='Farm Bill Calculator'!$G$37 -> 10.1 | AB173: 410.767 | AC173: 0 | AD173: 0
B174: MackinacSoybeansAll | C174: 26101 | D174: Michigan | E174: Mackinac | G174: Soybeans | H174: Bushel | I174: All | J174: 37 | K174: 37 | L174: 34.4 | M174: 40.1 | N174: 33.2 | O174: 28.8 | P174: 28.99 | Q174: 33.098 | R174: 32.8376 | U174: 32.19666667 | V174: ='Background Calculations'!$M$55 -> 12.17 | W174: 391.8334333 | X174: 336.9767527 | Y174: 39.18334333 | Z174: ='Farm Bill Calculator'!$G$23 -> 40.67 | AA174: ='Farm Bill Calculator'!$G$37 -> 10.1 | AB174: 410.767 | AC174: 0 | AD174: 0
B175: MacombSoybeansAll | C175: 26103 | D175: Michigan | E175: Macomb | G175: Soybeans | H175: Bushel | I175: All | J175: 43.96 | K175: 47.56 | L175: 38.31 | M175: 43.01 | N175: 42.34 | O175: 37.5 | P175: 40.11 | Q175: 40.674 | R175: 41.1468 | S175: 0.42 | U175: 40.25333333 | V175: ='Background Calculations'!$M$55 -> 12.17 | W175: 489.8830667 | X175: 421.2994373 | Y175: 48.98830667 | Z175: ='Farm Bill Calculator'!$G$23 -> 40.67 | AA175: ='Farm Bill Calculator'!$G$37 -> 10.1 | AB175: 410.767 | AC175: 10.53243733 | AD175: 10.53243733
B176: ManisteeSoybeansAll | C176: 26103 | D176: Michigan | E176: Manistee | G176: Soybeans | H176: Bushel | I176: All | J176: 37 | K176: 36.7 | L176: 34.4 | M176: 37.6 | N176: 48.45 | O176: 38.34 | P176: 36.44 | Q176: 39.046 | R176: 39.9752 | U176: 37.46 | V176: ='Background Calculations'!$M$55 -> 12.17 | W176: 455.8882 | X176: 392.063852 | Y176: 45.58882 | Z176: ='Farm Bill Calculator'!$G$23 -> 40.67 | AA176: ='Farm Bill Calculator'!$G$37 -> 10.1 | AB176: 410.767 | AC176: 0 | AD176: 0
B177: MasonSoybeansAll | C177: 26105 | D177: Michigan | E177: Mason | G177: Soybeans | H177: Bushel | I177: All | J177: 49.45 | K177: 47.56 | L177: 44.29 | M177: 49.77 | N177: 58.05 | O177: 45.83 | P177: 39.2 | Q177: 47.948 | R177: 48.6796 | S177: 0.52 | U177: 46.63 | V177: ='Background Calculations'!$M$55 -> 12.17 | W177: 567.4871 | X177: 488.038906 | Y177: 56.74871 | Z177: ='Farm Bill Calculator'!$G$23 -> 40.67 | AA177: ='Farm Bill Calculator'!$G$37 -> 10.1 | AB177: 410.767 | AC177: 77.271906 | AD177: 56.74871
B178: MecostaSoybeansIrrigated | C178: 26105 | D178: Michigan | E178: Mecosta | G178: Soybeans | H178: Bushel | I178: Irrigated | J178: 55.54 | K178: 54.02 | L178: 34.4 | M178: 56.39 | N178: 59.08 | O178: 55.02 | P178: 43.84 | Q178: 49.746 | R178: 52.8152 | U178: 51.75 | V178: ='Background Calculations'!$M$55 -> 12.17 | W178: 629.7975 | X178: 541.62585 | Y178: 62.97975 | Z178: ='Farm Bill Calculator'!$G$23 -> 40.67 | AA178: ='Farm Bill Calculator'!$G$37 -> 10.1 | AB178: 410.767 | AC178: 130.85885 | AD178: 62.97975
B179: MecostaSoybeansNonirrigated | C179: 26105 | D179: Michigan | E179: Mecosta | G179: Soybeans | H179: Bushel | I179: Nonirrigated | J179: 33.32 | K179: 26.47 | L179: 23.2 | M179: 30.08 | N179: 36.42 | O179: 27.81 | P179: 35.41 | Q179: 30.584 | R179: 32.0608 | U179: 31.1 | V179: ='Background Calculations'!$M$55 -> 12.17 | W179: 378.487 | X179: 325.49882 | Y179: 37.8487 | Z179: ='Farm Bill Calculator'!$G$23 -> 40.67 | AA179: ='Farm Bill Calculator'!$G$37 -> 10.1 | AB179: 410.767 | AC179: 0 | AD179: 0
B180: MenomineeSoybeansAll | C180: 26105 | D180: Michigan | E180: Menominee | G180: Soybeans | H180: Bushel | I180: All | J180: 24.18 | K180: 37.72 | L180: 17.6 | M180: 38.25 | N180: 33.2 | O180: 21.61 | P180: 28.99 | Q180: 27.93 | R180: 29.996 | U180: 27.93333333 | V180: ='Background Calculations'!$M$55 -> 12.17 | W180: 339.9486667 | X180: 292.3558533 | Y180: 33.99486667 | Z180: ='Farm Bill Calculator'!$G$23 -> 40.67 | AA180: ='Farm Bill Calculator'!$G$37 -> 10.1 | AB180: 410.767 | AC180: 0 | AD180: 0
B181: MidlandSoybeansAll | C181: 26107 | D181: Michigan | E181: Midland | G181: Soybeans | H181: Bushel | I181: All | J181: 43.05 | K181: 47.48 | L181: 40.58 | M181: 46.02 | N181: 50.39 | O181: 48 | P181: 44.42 | Q181: 46.372 | R181: 47.5304 | S181: 0.49 | U181: 46.14666667 | V181: ='Background Calculations'!$M$55 -> 12.17 | W181: 561.6049333 | X181: 482.9802427 | Y181: 56.16049333 | Z181: ='Farm Bill Calculator'!$G$23 -> 40.67 | AA181: ='Farm Bill Calculator'!$G$37 -> 10.1 | AB181: 410.767 | AC181: 72.21324267 | AD181: 56.16049333
B182: MissaukeeSoybeansAll | C182: 26107 | D182: Michigan | E182: Missaukee | G182: Soybeans | H182: Bushel | I182: All | J182: 37 | K182: 37 | L182: 34.4 | M182: 35.4 | N182: 35.47 | O182: 38.34 | P182: 36.44 | Q182: 36.01 | R182: 36.332 | U182: 35.77 | V182: ='Background Calculations'!$M$55 -> 12.17 | W182: 435.3209 | X182: 374.375974 | Y182: 43.53209 | Z182: ='Farm Bill Calculator'!$G$23 -> 40.67 | AA182: ='Farm Bill Calculator'!$G$37 -> 10.1 | AB182: =AA182*Z182 -> 410.767 | AC182: =IF(X182-AB182>0,X182-AB182,0) -> 0 | AD182: =MIN(AC182,Y182) -> 0
B183: MonroeSoybeansAll | C183: 26107 | D183: Michigan | E183: Monroe | G183: Soybeans | H183: Bushel | I183: All | J183: 52.41 | K183: 49.28 | L183: 51.91 | M183: 45.46 | N183: 54.56 | O183: 45.04 | P183: 53.6 | Q183: 50.604 | R183: 50.3428 | S183: 0.49 | U183: 50.32333333 | V183: ='Background Calculations'!$M$55 -> 12.17 | W183: 612.4349667 | X183: 526.6940713 | Y183: 61.24349667 | Z183: ='Farm Bill Calculator'!$G$23 -> 40.67 | AA183: ='Farm Bill Calculator'!$G$37 -> 10.1 | AB183: 410.767 | AC183: 115.9270713 | AD183: 61.24349667
B184: MontcalmSoybeansIrrigated | C184: 26107 | D184: Michigan | E184: Montcalm | G184: Soybeans | H184: Bushel | I184: Irrigated | J184: 52.47 | K184: 56.13 | L184: 53.68 | M184: 57.7 | N184: 61.09 | O184: 58.66 | P184: 51.78 | Q184: 56.982 | R184: 57.6424 | S184: 0.4 | U184: 56.68 | V184: ='Background Calculations'!$M$55 -> 12.17 | W184: 689.7956 | X184: 593.224216 | Y184: 68.97956 | Z184: ='Farm Bill Calculator'!$G$23 -> 40.67 | AA184: ='Farm Bill Calculator'!$G$37 -> 10.1 | AB184: 410.767 | AC184: 182.457216 | AD184: 68.97956
B185: MontcalmSoybeansNonirrigated | C185: 26107 | D185: Michigan | E185: Montcalm | G185: Soybeans | H185: Bushel | I185: Nonirrigated | J185: 35.6 | K185: 42.09 | L185: 37.61 | M185: 45.94 | N185: 48.26 | O185: 45.05 | P185: 40.65 | Q185: 43.882 | R185: 45.1364 | S185: 0.38 | U185: 43.88 | V185: ='Background Calculations'!$M$55 -> 12.17 | W185: 534.0196 | X185: 459.256856 | Y185: 53.40196 | Z185: ='Farm Bill Calculator'!$G$23 -> 40.67 | AA185: ='Farm Bill Calculator'!$G$37 -> 10.1 | AB185: 410.767 | AC185: 48.489856 | AD185: 48.489856
B186: MontmorencySoybeansAll | C186: 26109 | D186: Michigan | E186: Montmorency | G186: Soybeans | H186: Bushel | I186: All | J186: 41.79 | K186: 37 | L186: 30.57 | M186: 44.9 | N186: 48.29 | O186: 39.71 | P186: 31.94 | Q186: 39.082 | R186: 40.7844 | U186: 38.85 | V186: ='Background Calculations'!$M$55 -> 12.17 | W186: 472.8045 | X186: 406.61187 | Y186: 47.28045 | Z186: ='Farm Bill Calculator'!$G$23 -> 40.67 | AA186: ='Farm Bill Calculator'!$G$37 -> 10.1 | AB186: 410.767 | AC186: 0 | AD186: 0
B187: MuskegonSoybeansAll | C187: 26109 | D187: Michigan | E187: Muskegon | G187: Soybeans | H187: Bushel | I187: All | J187: 48.71 | K187: 47.4 | L187: 31.34 | M187: 42.75 | N187: 54.71 | O187: 54.02 | P187: 43.15 | Q187: 45.704 | R187: 48.5768 | S187: 0.51 | U187: 46.64 | V187: ='Background Calculations'!$M$55 -> 12.17 | W187: 567.6088 | X187: 488.143568 | Y187: 56.76088 | Z187: ='Farm Bill Calculator'!$G$23 -> 40.67 | AA187: ='Farm Bill Calculator'!$G$37 -> 10.1 | AB187: 410.767 | AC187: 77.376568 | AD187: 56.76088
B188: NewaygoSoybeansAll | C188: 26109 | D188: Michigan | E188: Newaygo | G188: Soybeans | H188: Bushel | I188: All | J188: 36.19 | K188: 35.37 | L188: 43.48 | M188: 41.84 | N188: 53.83 | O188: 53.53 | P188: 47.55 | Q188: 48.526 | R188: 49.5352 | S188: 0.48 | U188: 48.18666667 | V188: ='Background Calculations'!$M$55 -> 12.17 | W188: 586.4317333 | X188: 504.3312907 | Y188: 58.64317333 | Z188: ='Farm Bill Calculator'!$G$23 -> 40.67 | AA188: ='Farm Bill Calculator'!$G$37 -> 10.1 | AB188: 410.767 | AC188: 93.56429067 | AD188: 58.64317333
B189: OaklandSoybeansAll | C189: 26111 | D189: Michigan | E189: Oakland | G189: Soybeans | H189: Bushel | I189: All | J189: 34.37 | K189: 32.17 | L189: 33.03 | M189: 34.76 | N189: 41.11 | O189: 28.99 | P189: 31.21 | Q189: 34.15 | R189: 34.374 | S189: 0.33 | U189: 33 | V189: ='Background Calculations'!$M$55 -> 12.17 | W189: 401.61 | X189: 345.3846 | Y189: 40.161 | Z189: ='Farm Bill Calculator'!$G$23 -> 40.67 | AA189: ='Farm Bill Calculator'!$G$37 -> 10.1 | AB189: 410.767 | AC189: 0 | AD189: 0
B190: OceanaSoybeansIrrigated | C190: 26111 | D190: Michigan | E190: Oceana | G190: Soybeans | H190: Bushel | I190: Irrigated | J190: 48.46 | K190: 36.37 | L190: 42.88 | M190: 55.05 | N190: 49.48 | O190: 48.67 | P190: 43.92 | Q190: 48.43 | R190: 49.54 | S190: 0.43 | U190: 47.35666667 | V190: ='Background Calculations'!$M$55 -> 12.17 | W190: 576.3306333 | X190: 495.6443447 | Y190: 57.63306333 | Z190: ='Farm Bill Calculator'!$G$23 -> 40.67 | AA190: ='Farm Bill Calculator'!$G$37 -> 10.1 | AB190: 410.767 | AC190: 84.87734467 | AD190: 57.63306333
B191: OceanaSoybeansNonirrigated | C191: 26111 | D191: Michigan | E191: Oceana | G191: Soybeans | H191: Bushel | I191: Nonirrigated | J191: 40.55 | K191: 33.48 | L191: 29.72 | M191: 40 | N191: 44.88 | O191: 39.76 | P191: 35.65 | Q191: 38.422 | R191: 40.1624 | S191: 0.42 | U191: 38.47 | V191: ='Background Calculations'!$M$55 -> 12.17 | W191: 468.1799 | X191: 402.634714 | Y191: 46.81799 | Z191: ='Farm Bill Calculator'!$G$23 -> 40.67 | AA191: ='Farm Bill Calculator'!$G$37 -> 10.1 | AB191: 410.767 | AC191: 0 | AD191: 0
B192: OgemawSoybeansAll | C192: 26111 | D192: Michigan | E192: Ogemaw | G192: Soybeans | H192: Bushel | I192: All | J192: 43.66 | K192: 40.06 | L192: 35 | M192: 33.25 | N192: 46.87 | O192: 38.96 | P192: 43.28 | Q192: 39.472 | R192: 40.3664 | U192: 39.08 | V192: ='Background Calculations'!$M$55 -> 12.17 | W192: 475.6036 | X192: 409.019096 | Y192: 47.56036 | Z192: ='Farm Bill Calculator'!$G$23 -> 40.67 | AA192: ='Farm Bill Calculator'!$G$37 -> 10.1 | AB192: 410.767 | AC192: 0 | AD192: 0
B193: OsceolaSoybeansAll | C193: 26113 | D193: Michigan | E193: Osceola | G193: Soybeans | H193: Bushel | I193: All | J193: 33.47 | K193: 29.81 | L193: 24 | M193: 32.92 | N193: 42.86 | O193: 27.56 | P193: 36.44 | Q193: 32.756 | R193: 34.5072 | U193: 32.30666667 | V193: ='Background Calculations'!$M$55 -> 12.17 | W193: 393.1721333 | X193: 338.1280347 | Y193: 39.31721333 | Z193: ='Farm Bill Calculator'!$G$23 -> 40.67 | AA193: ='Farm Bill Calculator'!$G$37 -> 10.1 | AB193: 410.767 | AC193: 0 | AD193: 0
B194: OtsegoSoybeansAll | C194: 26113 | D194: Michigan | E194: Otsego | G194: Soybeans | H194: Bushel | I194: All | J194: 27.5 | K194: 37 | L194: 33.02 | M194: 44.9 | N194: 45.8 | O194: 38.34 | P194: 25.18 | Q194: 37.448 | R194: 38.3336 | U194: 38.75333333 | V194: ='Background Calculations'!$M$55 -> 12.17 | W194: 471.6280667 | X194: 405.6001373 | Y194: 47.16280667 | Z194: ='Farm Bill Calculator'!$G$23 -> 40.67 | AA194: ='Farm Bill Calculator'!$G$37 -> 10.1 | AB194: 410.767 | AC194: 0 | AD194: 0
B195: OttawaSoybeansIrrigated | C195: 26113 | D195: Michigan | E195: Ottawa | G195: Soybeans | H195: Bushel | I195: Irrigated | J195: 53.6 | K195: 50.82 | L195: 57.01 | M195: 47.51 | N195: 57.45 | O195: 60.01 | P195: 52.68 | Q195: 55.502 | R195: 55.2004 | S195: 0.57 | U195: 55.71333333 | V195: ='Background Calculations'!$M$55 -> 12.17 | W195: 678.0312667 | X195: 583.1068893 | Y195: 67.80312667 | Z195: ='Farm Bill Calculator'!$G$23 -> 40.67 | AA195: ='Farm Bill Calculator'!$G$37 -> 10.1 | AB195: 410.767 | AC195: 172.3398893 | AD195: 67.80312667
B196: OttawaSoybeansNonirrigated | C196: 26113 | D196: Michigan | E196: Ottawa | G196: Soybeans | H196: Bushel | I196: Nonirrigated | J196: 49.66 | K196: 46.23 | L196: 44.58 | M196: 46.76 | N196: 52.26 | O196: 56.2 | P196: 49.43 | Q196: 50.416 | R196: 51.5832 | S196: 0.57 | U196: 49.48333333 | V196: ='Background Calculations'!$M$55 -> 12.17 | W196: 602.2121667 | X196: 517.9024633 | Y196: 60.22121667 | Z196: ='Farm Bill Calculator'!$G$23 -> 40.67 | AA196: ='Farm Bill Calculator'!$G$37 -> 10.1 | AB196: 410.767 | AC196: 107.1354633 | AD196: 60.22121667
B197: =E197&G197&I197 -> Presque IsleSoybeansAll | C197: 26115 | D197: Michigan | E197: Presque Isle | G197: Soybeans | H197: Bushel | I197: All | J197: 37 | K197: 20.8 | L197: 20.8 | M197: 43.92 | N197: 31.92 | O197: 24.33 | P197: 30 | Q197: =AVERAGE(L197:P197)+S197 -> 30.194 | R197: 32.0728 | U197: 28.75 | V197: ='Background Calculations'!$M$55 -> 12.17 | W197: =U197*V197 -> 349.8875 | X197: =W197*0.86 -> 300.90325 | Y197: =W197*0.1 -> 34.98875 | Z197: ='Farm Bill Calculator'!$G$23 -> 40.67 | AA197: ='Farm Bill Calculator'!$G$37 -> 10.1 | AB197: 410.767 | AC197: 0 | AD197: 0
B198: SaginawSoybeansIrrigated | C198: 26115 | D198: Michigan | E198: Saginaw | G198: Soybeans | H198: Bushel | I198: Irrigated | J198: 57.01 | K198: 68.36 | L198: 45 | M198: 64.25 | N198: 59.05 | O198: 64.56 | P198: 54.31 | Q198: 57.934 | R198: =AVERAGE(M198:Q198)+S198 -> 60.5208 | S198: 0.5 | U198: =(SUM(L198:P198)-MIN(L198:P198)-MAX(L198:P198))/(COUNT(L198:P198)-2) -> 59.20333333 | V198: ='Background Calculations'!$M$55 -> 12.17 | W198: 720.5045667 | X198: 619.6339273 | Y198: 72.05045667 | Z198: ='Farm Bill Calculator'!$G$23 -> 40.67 | AA198: ='Farm Bill Calculator'!$G$37 -> 10.1 | AB198: 410.767 | AC198: 208.8669273 | AD198: 72.05045667
B199: SaginawSoybeansNonirrigated | C199: 26115 | D199: Michigan | E199: Saginaw | G199: Soybeans | H199: Bushel | I199: Nonirrigated | J199: 47.49 | K199: 55.63 | L199: 42.82 | M199: 52.58 | N199: 51.54 | O199: 51.69 | P199: 47.55 | Q199: 49.736 | R199: 51.1192 | S199: 0.5 | U199: 50.26 | V199: ='Background Calculations'!$M$55 -> 12.17 | W199: 611.6642 | X199: 526.031212 | Y199: 61.16642 | Z199: ='Farm Bill Calculator'!$G$23 -> 40.67 | AA199: ='Farm Bill Calculator'!$G$37 -> 10.1 | AB199: 410.767 | AC199: 115.264212 | AD199: 61.16642
B200: SanilacSoybeansAll | C200: 26115 | D200: Michigan | E200: Sanilac | G200: Soybeans | H200: Bushel | I200: All | J200: 50.31 | K200: 56.35 | L200: 34.73 | M200: 49.55 | N200: 40.07 | O200: 36.6 | P200: 37.41 | Q200: 40.052 | R200: 41.1164 | S200: 0.38 | U200: 38.02666667 | V200: ='Background Calculations'!$M$55 -> 12.17 | W200: 462.7845333 | X200: 397.9946987 | Y200: 46.27845333 | Z200: ='Farm Bill Calculator'!$G$23 -> 40.67 | AA200: ='Farm Bill Calculator'!$G$37 -> 10.1 | AB200: 410.767 | AC200: 0 | AD200: 0
... 89 more rows

Sheet SCO Coverage (hidden)
B1: 0
B2: 85-86%
B3: 80-86%
B4: 75-86%
B5: 70-86%
B6: 65-86%
B7: 60-86%
B8: 55-86%
B9: 50-86%

Sheet County List (hidden)
C2: Alcona
C3: Alger
C4: Allegan
C5: Alpena
C6: Antrim
C7: Arenac
C8: Baraga
C9: Barry
C10: Bay
C11: Benzie
C12: Berrien
C13: Branch
C14: Calhoun
C15: Cass
C16: Charlevoix
C17: Cheboygan
C18: Chippewa
C19: Clare
C20: Clinton
C21: Delta
C22: Dickinson
C23: Eaton
C24: Emmet
C25: Genesee
C26: Gladwin
C27: Grand Traverse
C28: Gratiot
C29: Hillsdale
C30: Houghton
C31: Huron
C32: Ingham
C33: Ionia
C34: Iosco
C35: Iron
C36: Isabella
C37: Jackson
C38: Kalamazoo
C39: Kalkaska
C40: Kent
C41: Lake
C42: Lapeer
C43: Leelanau
C44: Lenawee
C45: Livingston
C46: Luce
C47: Mackinac
C48: Macomb
C49: Manistee
C50: Marquette
C51: Mason
C52: Mecosta
C53: Menominee
C54: Midland
C55: Missaukee
C56: Monroe
C57: Montcalm
C58: Montmorency
C59: Muskegon
C60: Newaygo
C61: Oakland
C62: Oceana
C63: Ogemaw
C64: Ontonagon
C65: Osceola
C66: Oscoda
C67: Otsego
C68: Ottawa
C69: Presque Isle
C70: Roscommon
C71: Saginaw
C72: Sanilac
C73: Schoolcraft
C74: Shiawassee
C75: St. Clair
C76: St. Joseph
C77: Tuscola
C78: Van Buren
C79: Washtenaw
C80: Wayne
C81: Wexford
